Workbook

Sheet Рейтинг_ОИ
A1: Ведомство | B1: Статус | C1: Сайты | D1: Запросы | E1: Журналисты | F1: Average | G1: Индекс
A2: Главное управление специальных программ Президента Российской Федерации (ГУСП) | B2: През | C2: 0.5476190476 | D2: 0.625 | E2: 0.5 | F2: =AVERAGE(C2:E2) -> 0.5575396825 | G2: =IF(F2>=0.7,"A",IF(F2>=0.4,"B","C")) -> B
A3: Государственная фельдъегерская служба Российской Федерации (ГФС России) | B3: През | C3: 0.7954545455 | D3: 0.875 | E3: 0 | F3: =AVERAGE(C3:E3) -> 0.5568181818 | G3: =IF(F3>=0.7,"A",IF(F3>=0.4,"B","C")) -> B
A4: Казначейство России | B4: Прав | C4: 0.9090909091 | D4: 0.875 | E4: 0.45 | F4: =AVERAGE(C4:E4) -> 0.7446969697 | G4: =IF(F4>=0.7,"A",IF(F4>=0.4,"B","C")) -> A
A5: МВД России | B5: През | C5: 0.9166666667 | D5: 0.375 | E5: 0.35 | F5: =AVERAGE(C5:E5) -> 0.5472222222 | G5: =IF(F5>=0.7,"A",IF(F5>=0.4,"B","C")) -> B
A6: МИД России | B6: През | C6: 0.8695652174 | D6: 0.625 | E6: 0.2 | F6: =AVERAGE(C6:E6) -> 0.5648550725 | G6: =IF(F6>=0.7,"A",IF(F6>=0.4,"B","C")) -> B
A7: Минвостокразвития России | B7: Прав | C7: 0.9545454545 | D7: 0.75 | E7: 0.1 | F7: =AVERAGE(C7:E7) -> 0.6015151515 | G7: =IF(F7>=0.7,"A",IF(F7>=0.4,"B","C")) -> B
A8: Минздрав России | B8: Прав | C8: 0.9090909091 | D8: 0.875 | E8: 0.55 | F8: =AVERAGE(C8:E8) -> 0.778030303 | G8: =IF(F8>=0.7,"A",IF(F8>=0.4,"B","C")) -> A
A9: Минкультуры России | B9: Прав | C9: 0.8695652174 | D9: 0.625 | E9: 0.6 | F9: =AVERAGE(C9:E9) -> 0.6981884058 | G9: =IF(F9>=0.7,"A",IF(F9>=0.4,"B","C")) -> B
A10: Минобороны России | B10: През | C10: 0.9583333333 | D10: 0 | E10: 0.15 | F10: =AVERAGE(C10:E10) -> 0.3694444444 | G10: =IF(F10>=0.7,"A",IF(F10>=0.4,"B","C")) -> C
A11: Минобрнауки России | B11: Прав | C11: 0.8181818182 | D11: 0.625 | E11: 0.1 | F11: =AVERAGE(C11:E11) -> 0.5143939394 | G11: =IF(F11>=0.7,"A",IF(F11>=0.4,"B","C")) -> B
A12: Минприроды России | B12: Прав | C12: 0.8260869565 | D12: 0.875 | E12: 0.1 | F12: =AVERAGE(C12:E12) -> 0.6003623188 | G12: =IF(F12>=0.7,"A",IF(F12>=0.4,"B","C")) -> B
A13: Минпромторг России | B13: Прав | C13: 0.7727272727 | D13: 0.625 | E13: 0.15 | F13: =AVERAGE(C13:E13) -> 0.5159090909 | G13: =IF(F13>=0.7,"A",IF(F13>=0.4,"B","C")) -> B
A14: Минпросвещения России | B14: Прав | C14: 0.9583333333 | D14: 0.875 | E14: 0.35 | F14: =AVERAGE(C14:E14) -> 0.7277777778 | G14: =IF(F14>=0.7,"A",IF(F14>=0.4,"B","C")) -> A
A15: Минсельхоз России | B15: Прав | C15: 1 | D15: 0.875 | E15: 0.35 | F15: =AVERAGE(C15:E15) -> 0.7416666667 | G15: =IF(F15>=0.7,"A",IF(F15>=0.4,"B","C")) -> A
A16: Минспорт России | B16: Прав | C16: 0.9565217391 | D16: 0.625 | E16: 0.7 | F16: =AVERAGE(C16:E16) -> 0.7605072464 | G16: =IF(F16>=0.7,"A",IF(F16>=0.4,"B","C")) -> A
A17: Минстрой России | B17: Прав | C17: 0.8181818182 | D17: 0.75 | E17: 0.35 | F17: =AVERAGE(C17:E17) -> 0.6393939394 | G17: =IF(F17>=0.7,"A",IF(F17>=0.4,"B","C")) -> B
A18: Минтранс России | B18: Прав | C18: 0.9565217391 | D18: 0.875 | E18: 0.1 | F18: =AVERAGE(C18:E18) -> 0.6438405797 | G18: =IF(F18>=0.7,"A",IF(F18>=0.4,"B","C")) -> B
A19: Минтруд России | B19: Прав | C19: 0.8260869565 | D19: 0.875 | E19: 0.2 | F19: =AVERAGE(C19:E19) -> 0.6336956522 | G19: =IF(F19>=0.7,"A",IF(F19>=0.4,"B","C")) -> B
A20: Минфин России | B20: Прав | C20: 0.9090909091 | D20: 0.75 | E20: 0.45 | F20: =AVERAGE(C20:E20) -> 0.703030303 | G20: =IF(F20>=0.7,"A",IF(F20>=0.4,"B","C")) -> A
A21: Минцифры России | B21: Прав | C21: 1 | D21: 0.75 | E21: 0.6 | F21: =AVERAGE(C21:E21) -> 0.7833333333 | G21: =IF(F21>=0.7,"A",IF(F21>=0.4,"B","C")) -> A
A22: Минэкономразвития России | B22: Прав | C22: 0.9347826087 | D22: 0.75 | E22: 0.4 | F22: =AVERAGE(C22:E22) -> 0.6949275362 | G22: =IF(F22>=0.7,"A",IF(F22>=0.4,"B","C")) -> B
A23: Минэнерго России | B23: Прав | C23: 0.8695652174 | D23: 0.75 | E23: 0.45 | F23: =AVERAGE(C23:E23) -> 0.6898550725 | G23: =IF(F23>=0.7,"A",IF(F23>=0.4,"B","C")) -> B
A24: Минюст России | B24: През | C24: 0.8695652174 | D24: 0.75 | E24: 0.65 | F24: =AVERAGE(C24:E24) -> 0.7565217391 | G24: =IF(F24>=0.7,"A",IF(F24>=0.4,"B","C")) -> A
A25: МЧС России | B25: През | C25: 0.8333333333 | D25: 0.875 | E25: 0.6 | F25: =AVERAGE(C25:E25) -> 0.7694444444 | G25: =IF(F25>=0.7,"A",IF(F25>=0.4,"B","C")) -> A
A26: Росавиация | B26: Прав | C26: 0.875 | D26: 0.625 | E26: 0.3 | F26: =AVERAGE(C26:E26) -> 0.6 | G26: =IF(F26>=0.7,"A",IF(F26>=0.4,"B","C")) -> B
A27: Росавтодор | B27: Прав | C27: 0.9545454545 | D27: 0.75 | E27: 0.5 | F27: =AVERAGE(C27:E27) -> 0.7348484848 | G27: =IF(F27>=0.7,"A",IF(F27>=0.4,"B","C")) -> A
A28: Росаккредитация | B28: Прав | C28: 0.7708333333 | D28: 0.5 | E28: 0.7 | F28: =AVERAGE(C28:E28) -> 0.6569444444 | G28: =IF(F28>=0.7,"A",IF(F28>=0.4,"B","C")) -> B
A29: Росалкогольрегулирование | B29: Прав | C29: 0.8125 | D29: 1 | E29: 0.7 | F29: =AVERAGE(C29:E29) -> 0.8375 | G29: =IF(F29>=0.7,"A",IF(F29>=0.4,"B","C")) -> A
A30: Росархив | B30: През | C30: 1 | D30: 0.875 | E30: 0.5 | F30: =AVERAGE(C30:E30) -> 0.7916666667 | G30: =IF(F30>=0.7,"A",IF(F30>=0.4,"B","C")) -> A
A31: Росводресурсы | B31: Прав | C31: 0.9565217391 | D31: 0.625 | E31: 0.45 | F31: =AVERAGE(C31:E31) -> 0.677173913 | G31: =IF(F31>=0.7,"A",IF(F31>=0.4,"B","C")) -> B
A32: Росгвардия | B32: През | C32: 0.847826087 | D32: 0.625 | E32: 0.35 | F32: =AVERAGE(C32:E32) -> 0.6076086957 | G32: =IF(F32>=0.7,"A",IF(F32>=0.4,"B","C")) -> B
A33: Росгидромет | B33: Прав | C33: 1 | D33: 0.625 | E33: 0.6 | F33: =AVERAGE(C33:E33) -> 0.7416666667 | G33: =IF(F33>=0.7,"A",IF(F33>=0.4,"B","C")) -> A
A34: Росжелдор | B34: Прав | C34: 0.9565217391 | D34: 0 | E34: 0.3 | F34: =AVERAGE(C34:E34) -> 0.4188405797 | G34: =IF(F34>=0.7,"A",IF(F34>=0.4,"B","C")) -> B
A35: Росздравнадзор | B35: Прав | C35: 0.8958333333 | D35: 0.75 | E35: 0.2 | F35: =AVERAGE(C35:E35) -> 0.6152777778 | G35: =IF(F35>=0.7,"A",IF(F35>=0.4,"B","C")) -> B
A36: Росимущество | B36: Прав | C36: 0.9130434783 | D36: 0.75 | E36: 0.4 | F36: =AVERAGE(C36:E36) -> 0.6876811594 | G36: =IF(F36>=0.7,"A",IF(F36>=0.4,"B","C")) -> B
A37: Роскомнадзор | B37: Прав | C37: 0.9583333333 | D37: 0.75 | E37: 0.35 | F37: =AVERAGE(C37:E37) -> 0.6861111111 | G37: =IF(F37>=0.7,"A",IF(F37>=0.4,"B","C")) -> B
A38: Рослесхоз | B38: Прав | C38: 0.8333333333 | D38: 0.75 | E38: 0.3 | F38: =AVERAGE(C38:E38) -> 0.6277777778 | G38: =IF(F38>=0.7,"A",IF(F38>=0.4,"B","C")) -> B
A39: Росмолодёжь | B39: Прав | C39: 0.8636363636 | D39: 0.75 | E39: 0.7 | F39: =AVERAGE(C39:E39) -> 0.7712121212 | G39: =IF(F39>=0.7,"A",IF(F39>=0.4,"B","C")) -> A
A40: Росморречфлот | B40: Прав | C40: 1 | D40: 0 | E40: 0.15 | F40: =AVERAGE(C40:E40) -> 0.3833333333 | G40: =IF(F40>=0.7,"A",IF(F40>=0.4,"B","C")) -> C
A41: Роснедра | B41: Прав | C41: 0.8913043478 | D41: 0.875 | E41: 0.1 | F41: =AVERAGE(C41:E41) -> 0.6221014493 | G41: =IF(F41>=0.7,"A",IF(F41>=0.4,"B","C")) -> B
A42: Рособрнадзор | B42: Прав | C42: 0.9130434783 | D42: 0.875 | E42: 0.4 | F42: =AVERAGE(C42:E42) -> 0.7293478261 | G42: =IF(F42>=0.7,"A",IF(F42>=0.4,"B","C")) -> A
A43: Роспатент | B43: Прав | C43: 0.9565217391 | D43: 0 | E43: 0.15 | F43: =AVERAGE(C43:E43) -> 0.3688405797 | G43: =IF(F43>=0.7,"A",IF(F43>=0.4,"B","C")) -> C
A44: Роспотребнадзор | B44: Прав | C44: 0.9375 | D44: 0.875 | E44: 0.1 | F44: =AVERAGE(C44:E44) -> 0.6375 | G44: =IF(F44>=0.7,"A",IF(F44>=0.4,"B","C")) -> B
A45: Росприроднадзор | B45: Прав | C45: 0.9166666667 | D45: 0.75 | E45: 0.1 | F45: =AVERAGE(C45:E45) -> 0.5888888889 | G45: =IF(F45>=0.7,"A",IF(F45>=0.4,"B","C")) -> B
A46: Росреестр | B46: Прав | C46: 0.9583333333 | D46: 0.75 | E46: 0.55 | F46: =AVERAGE(C46:E46) -> 0.7527777778 | G46: =IF(F46>=0.7,"A",IF(F46>=0.4,"B","C")) -> A
A47: Росрезерв | B47: Прав | C47: 0.9090909091 | D47: 0.875 | E47: 0.4 | F47: =AVERAGE(C47:E47) -> 0.728030303 | G47: =IF(F47>=0.7,"A",IF(F47>=0.4,"B","C")) -> A
A48: Росрыболовство | B48: Прав | C48: 0.8541666667 | D48: 0.875 | E48: 0.25 | F48: =AVERAGE(C48:E48) -> 0.6597222222 | G48: =IF(F48>=0.7,"A",IF(F48>=0.4,"B","C")) -> B
A49: Россельхознадзор | B49: Прав | C49: 0.8125 | D49: 0.875 | E49: 0.7 | F49: =AVERAGE(C49:E49) -> 0.7958333333 | G49: =IF(F49>=0.7,"A",IF(F49>=0.4,"B","C")) -> A
A50: Россотрудничество | B50: През | C50: 0.8636363636 | D50: 0.75 | E50: 0.3 | F50: =AVERAGE(C50:E50) -> 0.6378787879 | G50: =IF(F50>=0.7,"A",IF(F50>=0.4,"B","C")) -> B
A51: Росстандарт | B51: Прав | C51: 0.9583333333 | D51: 0.375 | E51: 0.2 | F51: =AVERAGE(C51:E51) -> 0.5111111111 | G51: =IF(F51>=0.7,"A",IF(F51>=0.4,"B","C")) -> B
A52: Росстат | B52: Прав | C52: 1 | D52: 0.875 | E52: 0.75 | F52: =AVERAGE(C52:E52) -> 0.875 | G52: =IF(F52>=0.7,"A",IF(F52>=0.4,"B","C")) -> A
A53: Ростехнадзор | B53: Прав | C53: 0.9166666667 | D53: 0.75 | E53: 0.45 | F53: =AVERAGE(C53:E53) -> 0.7055555556 | G53: =IF(F53>=0.7,"A",IF(F53>=0.4,"B","C")) -> A
A54: Ространснадзор | B54: Прав | C54: 0.9583333333 | D54: 0.625 | E54: 0.5 | F54: =AVERAGE(C54:E54) -> 0.6944444444 | G54: =IF(F54>=0.7,"A",IF(F54>=0.4,"B","C")) -> B
A55: Роструд | B55: Прав | C55: 0.9166666667 | D55: 0.625 | E55: 0.5 | F55: =AVERAGE(C55:E55) -> 0.6805555556 | G55: =IF(F55>=0.7,"A",IF(F55>=0.4,"B","C")) -> B
A56: Ростуризм | B56: Прав | C56: 0.9545454545 | D56: 0 | E56: 0.1 | F56: =AVERAGE(C56:E56) -> 0.3515151515 | G56: =IF(F56>=0.7,"A",IF(F56>=0.4,"B","C")) -> C
A57: Росфинмониторинг | B57: През | C57: 0.7173913043 | D57: 0.75 | E57: 0.45 | F57: =AVERAGE(C57:E57) -> 0.6391304348 | G57: =IF(F57>=0.7,"A",IF(F57>=0.4,"B","C")) -> B
A58: СВР России | B58: През | C58: 0.6818181818 | D58: 0 | E58: 0.25 | F58: =AVERAGE(C58:E58) -> 0.3106060606 | G58: =IF(F58>=0.7,"A",IF(F58>=0.4,"B","C")) -> C
A59: Управление делами Президента Российской Федерации | B59: През | C59: 0.9047619048 | D59: 0 | E59: 0.15 | F59: =AVERAGE(C59:E59) -> 0.3515873016 | G59: =IF(F59>=0.7,"A",IF(F59>=0.4,"B","C")) -> C
A60: ФАДН России | B60: Прав | C60: 0.8409090909 | D60: 0.75 | E60: 0.15 | F60: =AVERAGE(C60:E60) -> 0.5803030303 | G60: =IF(F60>=0.7,"A",IF(F60>=0.4,"B","C")) -> B
A61: ФАС России | B61: Прав | C61: 0.9166666667 | D61: 0.875 | E61: 0.75 | F61: =AVERAGE(C61:E61) -> 0.8472222222 | G61: =IF(F61>=0.7,"A",IF(F61>=0.4,"B","C")) -> A
A62: Федеральная пробирная палата | B62: Прав | C62: 0.6363636364 | D62: 0.875 | E62: 0.45 | F62: =AVERAGE(C62:E62) -> 0.6537878788 | G62: =IF(F62>=0.7,"A",IF(F62>=0.4,"B","C")) -> B
A63: ФМБА России | B63: Прав | C63: 0.9166666667 | D63: 0.625 | E63: 0.3 | F63: =AVERAGE(C63:E63) -> 0.6138888889 | G63: =IF(F63>=0.7,"A",IF(F63>=0.4,"B","C")) -> B
A64: ФНС России | B64: Прав | C64: 0.9166666667 | D64: 0.75 | E64: 0.3 | F64: =AVERAGE(C64:E64) -> 0.6555555556 | G64: =IF(F64>=0.7,"A",IF(F64>=0.4,"B","C")) -> B
A65: ФСБ России | B65: През | C65: 0.7608695652 | D65: 0.5 | E65: 0.3 | F65: =AVERAGE(C65:E65) -> 0.5202898551 | G65: =IF(F65>=0.7,"A",IF(F65>=0.4,"B","C")) -> B
A66: ФСВТС России | B66: През | C66: 0.8095238095 | D66: 0.625 | E66: 0.1 | F66: =AVERAGE(C66:E66) -> 0.5115079365 | G66: =IF(F66>=0.7,"A",IF(F66>=0.4,"B","C")) -> B
A67: ФСИН России | B67: През | C67: 0.7826086957 | D67: 0 | E67: 0.1 | F67: =AVERAGE(C67:E67) -> 0.2942028986 | G67: =IF(F67>=0.7,"A",IF(F67>=0.4,"B","C")) -> C
A68: ФСО России | B68: През | C68: 0.652173913 | D68: 0.375 | E68: 0.65 | F68: =AVERAGE(C68:E68) -> 0.559057971 | G68: =IF(F68>=0.7,"A",IF(F68>=0.4,"B","C")) -> B
A69: ФССП России | B69: През | C69: 0.9583333333 | D69: 0.75 | E69: 0.2 | F69: =AVERAGE(C69:E69) -> 0.6361111111 | G69: =IF(F69>=0.7,"A",IF(F69>=0.4,"B","C")) -> B
A70: ФСТЭК России | B70: През | C70: 0.7173913043 | D70: 0.75 | E70: 0.3 | F70: =AVERAGE(C70:E70) -> 0.5891304348 | G70: =IF(F70>=0.7,"A",IF(F70>=0.4,"B","C")) -> B
A71: ФТС России | B71: Прав | C71: 1 | D71: 0.75 | E71: 0.75 | F71: =AVERAGE(C71:E71) -> 0.8333333333 | G71: =IF(F71>=0.7,"A",IF(F71>=0.4,"B","C")) -> A

Sheet Коды
A1: ОЦЕНКА САЙТОВ ФОИВ (МИНИСТЕРСТВ, АГЕНТСТВ, СЛУЖБ, УПРАВЛЕНИЙ)
A2: Блоки оценки | B2: Критерии оценки | C2: Коды критериев | D2: Возможные значения | E2: Максимум
A3: Общая информация о ФОИВ | B3: Наличие контактов пресс-службы | C3: has_press_contacts | D3: 1 - да, 0 - нет | E3: 1
B4: Наличие почтового адреса, по которому можно направлять запросы и обращения | C4: has_snail_mail | D4: 1 - да, 0 - нет | E4: 1
B5: Наличие электронного адреса для запросов и обращений | C5: has_email | D5: 1 - да, 0 - нет | E5: 1
B6: Наличие телефона для справок | C6: has_phone | D6: 1 - да, 0 - нет | E6: 1
B7: Наличие функционала поиска по сайту | C7: has_search | D7: 1 - да, 0 - нет | E7: 1
B8: Наличие возможности определить дату и время размещения информации, а также дату и время последнего изменения информации | C8: has_date_info | D8: 1 - да, 0 - нет | E8: 1
B9: Наличие возможности масштабировать (увеличивать и уменьшать) шрифт | C9: has_font_options | D9: 1 - да, 0 - нет | E9: 1
B10: Наличие информации о структуре государственного органа | C10: has_structure_info | D10: 1 - да, 0 - нет | E10: 1
B11: Наличие сведений о полномочиях государственного органа, задачах и функциях структурных подразделений органа | C11: has_functions_info | D11: 1 - да, 0 - нет | E11: 1
B12: Наличие перечня территориальных органов и представительств государственного органа | C12: has_territory_info | D12: 1 - да, 0 - нет | E12: 1
B13: Наличие перечня подведомственных организаций | C13: has_children_info | D13: 1 - да, 0 - нет | E13: 1
B14: Наличие сведений о руководителях государственного органа | C14: has_board_info | D14: 1 - да, 0 - нет | E14: 1
B15: Наличие информации о работе государственного органа с обращениями | C15: has_requests_info | D15: 1 - да, 0 - нет | E15: 1
B16: Наличие статистической информации о деятельности государственного органа | C16: has_activity_stats | D16: 1 - да, 0 - нет | E16: 1
B17: Наличие на сайте информации об информационных системах, базах и реестрах в ведении госоргана | C17: has_db_info | D17: 1 - да, 0 - нет | E17: 1
A18: Информация о нормотворческой деятельности | B18: Наличие перечня принятых нормативно-правовых актов ФОИВ | C18: has_law_activity_info | D18: 1/2 - да, 0 - нет | E18: 1
B19: Наличие информации о результатах общественного обсуждения проектов НПА (или ссылка на страницу ФОИВ на regulation.gov.ru) | C19: has_discussion_info | D19: 1/2 - да, 0 - нет
A20: Информация об участии ФОИВ в программах | B20: Наличие перечня программ, в которых участвует госорган | C20: has_programmes_info | D20: 1/2 - да, 0 - нет | E20: 1
B21: Сроки начала и окончания реализации программы, ожидаемые результаты | C21: has_program_terms_info | D21: 1/2 - да, 0 - нет
A22: Информация о результатах проверок, проведенных ФОИВ* | B22: Наличие информации о результатах проверок, проведенных госорганом, его территориальными органами и подведомственными организациями | C22: has_audit_info | D22: 1/2 - да, 0 - нет | E22: 1
B23: Информация о правилах, соблюдение которых является предметом проводимых проверок | C23: has_regulation_info | D23: 1/2 - да, 0 - нет
A24: Информация о кадровом обеспечении | B24: Наличие информации о формировании резерва кадров и его составе | C24: has_jobs_info | D24: 1/2 - да, 0 - нет | E24: 1
B25: Наличие контактов, по которым можно получить информацию о замещении вакантных должностей в госоргане | C25: has_jobs_contacts | D25: 1/2 - да, 0 - нет
A26: Информация о предоставлении государственных услуг | B26: Наличие перечня предоставляемых госуслуг (или ссылка на страницу ФОИВ на Госуслугах) | C26: has_services_info | D26: 1 - да, 0 - нет | E26: 1
A27: Пользовательский опыт | B27: Сколько времени ушло на сбор этой информации по сайту | C27: search_time | D27: 2 - 0-15 минут, 1 - 15-30 минут, 0 - более 30 минут | E27: 2
B28: Насколько легко тексты на сайте воспринимаются читателем | C28: readability | D28: 2 – выше коридора нормы, 1 – в пределах нормы, 0 – ниже коридора нормы | E28: 2
B29: МАКСИМУМ | E29: 24
A31: * - Для ФОИВ, осуществляющих контроль и надзор. http://static.government.ru/media/files/xcAOZszlPnsB9jDDLj5AQoymiX3QIwfs.pdf
A39: ОЦЕНКА РЕАГИРОВАНИЯ НА ИНФОРМАЦИОННЫЕ ЗАПРОСЫ
A40: Критерии | B40: Баллы
A41: Ответ на запрос поступил | B41: 1 – да,
B42: 0 – нет
A43: Срок ответа соблюден по закону (30 дней) | B43: 1 – да,
B44: 0 – нет
A45: Сокращенный срок ответа (15 дней и меньше) | B45: 1 – да,
B46: 0 – нет
A47: Сколько вопросов раскрыто в ответе | B47: 3 – все три вопроса,
B48: 2 – два из трех,
B49: 1 – только один,
B50: 0 – ни одного
A51: Читабельность текста ответа на информационный запрос | B51: 2 – лучше коридора нормы,
B52: 1 – в пределах нормы,
B53: 0 – ниже коридора нормы
A54: Максимум | B54: 8
A64: ОЦЕНКА ФОИВ ПО ВЗАИМОДЕЙСТВИЮ С ЖУРНАЛИСТАМИ
A65: Блоки оценки | B65: Критерии оценки | C65: Возможные значения | D65: Примечания
A66: Доступность контактов | B66: На сайте указаны отдельные контакты пресс-службы/контакты для журналистов | C66: 1 – есть отдельные контакты | D66: Все запросы делаются в соответствии с редакционной политикой, СП не вмещивается в текст запросов. Каждая редакция оценивает ФОИВ по всем параметрам самостоятельно. Период оценки 1-31 марта. СП сверяет оценки по представленным текстами запросов и ответов. Из трех оценок формируется средняя, считается отношение средней оценки по трем редакциям к максимальному кол-ву баллов.
C67: 0 – только общие для справок
B68: Персонификация контактов: указано конкретное имя, определена конкретная группа вопросов, указан конкретный номер для связи | C68: 1 – есть
C69: 0 – нет
A70: Процесс взаимодействия | B70: Пришел ли ответ о получении запрос | C70: 1 – есть
C71: 0 – нет
B72: Для связи с журналистом использовались формальные (общая почта, формальные ответы, бланки и тд) или неформальные (мессенджеры, звонки, персональные почты сотрудников) | C72: 2 – использовались формальные и неформальные каналы
C73: 1 – использовались только формальные каналы
C74: 0 – нет ответа вообще
B75: Ответ/отказ предоставлен в оговоренный/установленный законом срок | C75: 1 – да
C76: 0 – нет
A77: Качество ответа | B77: Обоснованность, глубина и содержательность ответа | C77: Содержательный полный ответ — 2
C78: Неполный ответ или обоснованный отказ — 1
C79: Формальный ответ/отписка— 0
B80: Читабельность текста | C80: 2 - лучше коридора нормы | D80: Оцениватеся машинно, через сервис проверки текстов. "Коридор нормы" формируется по итогам общей оценки всех ФОИВ | E80: http://ru.readability.io
C81: 1 - в пределах нормы | E81: Норма читабельности - 15-18 баллов
C82: 0 - ниже показателя нормы
B83: Максимум | C83: 10

Sheet Откр_сайтов
A1: Ведомство | B1: Ссылка на сайт | C1: has_press_contacts | D1: has_snail_mail | E1: has_email | F1: has_phone | G1: has_search | H1: has_date_info | I1: has_font_options | J1: has_structure_info | K1: has_functions_info | L1: has_territory_info | M1: has_children_info | N1: has_board_info | O1: has_requests_info | P1: has_activity_stats | Q1: has_db_info | R1: has_law_activity_info | S1: has_discussion_info | T1: has_programmes_info | U1: has_program_terms_info | V1: has_audit_info | W1: has_regulation_info | X1: has_jobs_info | Y1: has_jobs_contacts | Z1: has_services_info | AA1: search_time | AB1: readability | AC1: Итог | AD1: Max | AE1: Rate
A2: Главное управление специальных программ Президента Российской Федерации (ГУСП) | B2: http://www.gusp.gov.ru/ | C2: 0 | D2: 1 | E2: 1 | F2: 1 | G2: 0 | H2: 0 | I2: 0 | J2: 0 | K2: 1 | L2: - | M2: 0 | N2: 1 | O2: 1 | P2: 1 | Q2: 0 | R2: 0.5 | S2: 0.5 | T2: 0 | U2: 0 | V2: - | W2: - | X2: 0 | Y2: 0.5 | Z2: - | AA2: 2 | AB2: 1 | AC2: 11.5 | AD2: 21 | AE2: 0.548
A3: Государственная фельдъегерская служба Российской Федерации (ГФС России) | B3: https://gfs.gov.ru/ | C3: 0 | D3: 1 | E3: 1 | F3: 1 | G3: 1 | H3: 1 | I3: 1 | J3: 1 | K3: 1 | L3: 1 | M3: 1 | N3: 1 | O3: 1 | P3: 0 | Q3: 0 | R3: 0.5 | S3: 0.5 | T3: 0.5 | U3: 0.5 | V3: - | W3: - | X3: 0 | Y3: 0.5 | Z3: - | AA3: 2 | AB3: 1 | AC3: 17.5 | AD3: 22 | AE3: 0.795
A4: Казначейство России | B4: https://roskazna.gov.ru/ | C4: 1 | D4: 1 | E4: 0 | F4: 1 | G4: 1 | H4: 1 | I4: 1 | J4: 1 | K4: 1 | L4: 1 | M4: 1 | N4: 1 | O4: 1 | P4: 1 | Q4: 1 | R4: 0.5 | S4: 0.5 | T4: 0.5 | U4: 0.5 | V4: - | W4: - | X4: 0.5 | Y4: 0.5 | Z4: - | AA4: 2 | AB4: 1 | AC4: 20 | AD4: 22 | AE4: 0.909
A5: МВД России | B5: http://www.mvd.ru | C5: 1 | D5: 1 | E5: 0 | F5: 1 | G5: 1 | H5: 1 | I5: 1 | J5: 1 | K5: 1 | L5: 1 | M5: 1 | N5: 1 | O5: 1 | P5: 1 | Q5: 1 | R5: 0.5 | S5: 0.5 | T5: 0.5 | U5: 0.5 | V5: 0.5 | W5: 0.5 | X5: 0.5 | Y5: 0.5 | Z5: 1 | AA5: 2 | AB5: 1 | AC5: 22 | AD5: 24 | AE5: 0.917
A6: МИД России | B6: http://www.mid.ru/ | C6: 1 | D6: 1 | E6: 0 | F6: 1 | G6: 1 | H6: 1 | I6: 1 | J6: 1 | K6: 1 | L6: 1 | M6: 1 | N6: 1 | O6: 1 | P6: 1 | Q6: 0 | R6: 0.5 | S6: 0.5 | T6: 0.5 | U6: 0.5 | V6: - | W6: - | X6: 0.5 | Y6: 0.5 | Z6: 1 | AA6: 2 | AB6: 1 | AC6: 20 | AD6: 23 | AE6: 0.87
A7: Минвостокразвития России | B7: https://minvr.gov.ru/ | C7: 1 | D7: 1 | E7: 1 | F7: 1 | G7: 1 | H7: 1 | I7: 1 | J7: 1 | K7: 1 | L7: - | M7: 1 | N7: 1 | O7: 1 | P7: 1 | Q7: 1 | R7: 0.5 | S7: 0.5 | T7: 0.5 | U7: 0.5 | V7: - | W7: - | X7: 0.5 | Y7: 0.5 | Z7: 1 | AA7: 2 | AB7: 1 | AC7: 21 | AD7: 22 | AE7: 0.955
A8: Минздрав России | B8: https://minzdrav.gov.ru/ | C8: 1 | D8: 1 | E8: 1 | F8: 1 | G8: 1 | H8: 1 | I8: 1 | J8: 1 | K8: 1 | L8: - | M8: 1 | N8: 1 | O8: 1 | P8: 1 | Q8: 1 | R8: 0.5 | S8: 0.5 | T8: 0.5 | U8: 0.5 | V8: - | W8: - | X8: 0.5 | Y8: 0.5 | Z8: 1 | AA8: 1 | AB8: 1 | AC8: 20 | AD8: 22 | AE8: 0.909
A9: Минкультуры России | B9: https://culture.gov.ru/ | C9: 1 | D9: 1 | E9: 1 | F9: 1 | G9: 1 | H9: 1 | I9: 1 | J9: 1 | K9: 1 | L9: 1 | M9: 1 | N9: 1 | O9: 1 | P9: 1 | Q9: 1 | R9: 0.5 | S9: 0.5 | T9: 0.5 | U9: 0.5 | V9: 0.5 | W9: 0.5 | X9: 0.5 | Y9: 0.5 | Z9: 1 | AA9: 1 | AB9: 2 | AC9: 23 | AD9: 24 | AE9: 0.958
A10: Минобороны России | B10: http://mil.ru/ | C10: 1 | D10: 1 | E10: 0 | F10: 1 | G10: 1 | H10: 0 | I10: 1 | J10: 1 | K10: 1 | L10: - | M10: 1 | N10: 1 | O10: 1 | P10: 1 | Q10: 1 | R10: 0.5 | S10: 0.5 | T10: 0.5 | U10: 0.5 | V10: - | W10: - | X10: 0.5 | Y10: 0.5 | Z10: 1 | AA10: 1 | AB10: 1 | AC10: 19 | AD10: 22 | AE10: 0.864
A11: Минобрнауки России | B11: https://www.minobrnauki.gov.ru/ | C11: 1 | D11: 1 | E11: 0 | F11: 1 | G11: 1 | H11: 0 | I11: 1 | J11: 1 | K11: 1 | L11: 1 | M11: 1 | N11: 1 | O11: 1 | P11: 1 | Q11: 1 | R11: 0.5 | S11: 0.5 | T11: 0.5 | U11: 0.5 | V11: - | W11: - | X11: 0.5 | Y11: 0.5 | Z11: 1 | AA11: 1 | AB11: 1 | AC11: 19 | AD11: 23 | AE11: 0.826
A12: Минприроды России | B12: http://www.mnr.gov.ru/ | C12: 1 | D12: 1 | E12: 0 | F12: 1 | G12: 1 | H12: 1 | I12: 1 | J12: 1 | K12: 1 | L12: - | M12: 0 | N12: 1 | O12: 1 | P12: 1 | Q12: 0 | R12: 0.5 | S12: 0.5 | T12: 0.5 | U12: 0.5 | V12: - | W12: - | X12: 0.5 | Y12: 0.5 | Z12: 1 | AA12: 0 | AB12: 2 | AC12: 17 | AD12: 22 | AE12: 0.773
A13: Минпромторг России | B13: http://minpromtorg.gov.ru/ | C13: 1 | D13: 1 | E13: 1 | F13: 1 | G13: 1 | H13: 0 | I13: 1 | J13: 1 | K13: 1 | L13: 1 | M13: 1 | N13: 1 | O13: 1 | P13: 1 | Q13: 1 | R13: 0.5 | S13: 0.5 | T13: 0.5 | U13: 0.5 | V13: 0.5 | W13: 0.5 | X13: 0.5 | Y13: 0.5 | Z13: 1 | AA13: 2 | AB13: 2 | AC13: 23 | AD13: 24 | AE13: 0.958
A14: Минпросвещения России | B14: https://edu.gov.ru/ | C14: 1 | D14: 1 | E14: 1 | F14: 1 | G14: 1 | H14: 1 | I14: 1 | J14: 1 | K14: 1 | L14: - | M14: 1 | N14: 1 | O14: 1 | P14: 1 | Q14: 1 | R14: 0.5 | S14: 0.5 | T14: 0.5 | U14: 0.5 | V14: 0.5 | W14: 0.5 | X14: 0.5 | Y14: 0.5 | Z14: 1 | AA14: 2 | AB14: 2 | AC14: 23 | AD14: 23 | AE14: 1
A15: Минсельхоз России | B15: https://mcx.gov.ru/ | C15: 1 | D15: 1 | E15: 1 | F15: 1 | G15: 1 | H15: 1 | I15: 1 | J15: 1 | K15: 1 | L15: - | M15: 1 | N15: 1 | O15: 1 | P15: 1 | Q15: 1 | R15: 0.5 | S15: 0.5 | T15: 0.5 | U15: 0.5 | V15: 0.5 | W15: 0.5 | X15: 0.5 | Y15: 0.5 | Z15: 1 | AA15: 2 | AB15: 1 | AC15: 22 | AD15: 23 | AE15: 0.957
A16: Минспорт России | B16: http://www.minsport.gov.ru/ | C16: 1 | D16: 1 | E16: 0 | F16: 1 | G16: 1 | H16: 1 | I16: 1 | J16: 1 | K16: 1 | L16: - | M16: 1 | N16: 1 | O16: 1 | P16: 1 | Q16: 0 | R16: 0.5 | S16: 0.5 | T16: 0.5 | U16: 0.5 | V16: - | W16: - | X16: 0.5 | Y16: 0.5 | Z16: 0 | AA16: 1 | AB16: 2 | AC16: 18 | AD16: 22 | AE16: 0.818
A17: Минстрой России | B17: https://minstroyrf.gov.ru/ | C17: 1 | D17: 1 | E17: 1 | F17: 1 | G17: 1 | H17: 1 | I17: 1 | J17: 1 | K17: 1 | L17: - | M17: 1 | N17: 1 | O17: 1 | P17: 1 | Q17: 1 | R17: 0.5 | S17: 0.5 | T17: 0.5 | U17: 0.5 | V17: 0.5 | W17: 0.5 | X17: 0.5 | Y17: 0.5 | Z17: 1 | AA17: 1 | AB17: 2 | AC17: 22 | AD17: 23 | AE17: 0.957
A18: Минтранс России | B18: https://mintrans.gov.ru/ | C18: 1 | D18: 1 | E18: 0 | F18: 1 | G18: 1 | H18: 0 | I18: 1 | J18: 1 | K18: 1 | L18: 0 | M18: 1 | N18: 1 | O18: 1 | P18: 1 | Q18: 1 | R18: 0.5 | S18: 0.5 | T18: 0.5 | U18: 0.5 | V18: - | W18: - | X18: 0.5 | Y18: 0.5 | Z18: 1 | AA18: 2 | AB18: 1 | AC18: 19 | AD18: 23 | AE18: 0.826
A19: Минтруд России | B19: https://mintrud.gov.ru/ | C19: 1 | D19: 1 | E19: 0 | F19: 1 | G19: 1 | H19: 1 | I19: 1 | J19: 1 | K19: 1 | L19: - | M19: 1 | N19: 1 | O19: 1 | P19: 1 | Q19: 1 | R19: 0.5 | S19: 0.5 | T19: 0.5 | U19: 0.5 | V19: - | W19: - | X19: 0.5 | Y19: 0.5 | Z19: 1 | AA19: 2 | AB19: 1 | AC19: 20 | AD19: 22 | AE19: 0.909
A20: Минфин России | B20: https://minfin.gov.ru/ru/ | C20: 1 | D20: 1 | E20: 1 | F20: 1 | G20: 1 | H20: 1 | I20: 1 | J20: 1 | K20: 1 | L20: - | M20: 1 | N20: 1 | O20: 1 | P20: 1 | Q20: 1 | R20: 0.5 | S20: 0.5 | T20: 0.5 | U20: 0.5 | V20: 0.5 | W20: 0.5 | X20: 0.5 | Y20: 0.5 | Z20: 1 | AA20: 2 | AB20: 2 | AC20: 23 | AD20: 23 | AE20: 1
A21: Минцифры России | B21: https://digital.gov.ru/ru/ | C21: 1 | D21: 1 | E21: 1 | F21: 1 | G21: 1 | H21: 0 | I21: 1 | J21: 1 | K21: 1 | L21: - | M21: 1 | N21: 1 | O21: 1 | P21: 1 | Q21: 1 | R21: 0.5 | S21: 0.5 | T21: 0.5 | U21: 0.5 | V21: 0.5 | W21: 0.5 | X21: 0.5 | Y21: 0.5 | Z21: 1 | AA21: 1 | AB21: 1 | AC21: 20 | AD21: 23 | AE21: 0.87
A22: Минэкономразвития России | B22: https://www.economy.gov.ru/ | C22: 1 | D22: 1 | E22: 1 | F22: 1 | G22: 1 | H22: 1 | I22: 1 | J22: 1 | K22: 1 | L22: - | M22: 1 | N22: 1 | O22: 1 | P22: 1 | Q22: 1 | R22: 0.5 | S22: 0.5 | T22: 0.5 | U22: 0.5 | V22: 0.5 | W22: 0.5 | X22: 0 | Y22: 0.5 | Z22: 1 | AA22: 2 | AB22: 1 | AC22: 21.5 | AD22: 23 | AE22: 0.935
A23: Минэнерго России | B23: https://minenergo.gov.ru/ | C23: 1 | D23: 1 | E23: 1 | F23: 1 | G23: 1 | H23: 0 | I23: 1 | J23: 1 | K23: 1 | L23: - | M23: 1 | N23: 1 | O23: 1 | P23: 1 | Q23: 1 | R23: 0.5 | S23: 0.5 | T23: 0.5 | U23: 0.5 | V23: 0.5 | W23: 0.5 | X23: 0.5 | Y23: 0.5 | Z23: 1 | AA23: 1 | AB23: 1 | AC23: 20 | AD23: 23 | AE23: 0.87
A24: Минюст России | B24: https://minjust.gov.ru/ru/ | C24: 1 | D24: 1 | E24: 1 | F24: 1 | G24: 1 | H24: 1 | I24: 0 | J24: 1 | K24: 1 | L24: 1 | M24: 1 | N24: 1 | O24: 1 | P24: 1 | Q24: 1 | R24: 0.5 | S24: 0.5 | T24: 0.5 | U24: 0.5 | V24: - | W24: - | X24: 0.5 | Y24: 0.5 | Z24: 1 | AA24: 2 | AB24: 0 | AC24: 20 | AD24: 23 | AE24: 0.87
A25: МЧС России | B25: https://www.mchs.gov.ru/ | C25: 1 | D25: 1 | E25: 0 | F25: 1 | G25: 1 | H25: 0 | I25: 1 | J25: 1 | K25: 1 | L25: 1 | M25: 1 | N25: 1 | O25: 1 | P25: 1 | Q25: 1 | R25: 0.5 | S25: 0.5 | T25: 0.5 | U25: 0.5 | V25: 0.5 | W25: 0.5 | X25: 0.5 | Y25: 0.5 | Z25: 1 | AA25: 1 | AB25: 1 | AC25: 20 | AD25: 24 | AE25: 0.833
A26: Росавиация | B26: https://favt.gov.ru/ | C26: 1 | D26: 1 | E26: 1 | F26: 1 | G26: 1 | H26: 0 | I26: 1 | J26: 1 | K26: 1 | L26: 1 | M26: 1 | N26: 1 | O26: 1 | P26: 1 | Q26: 1 | R26: 0.5 | S26: 0.5 | T26: 0.5 | U26: 0.5 | V26: 0.5 | W26: 0.5 | X26: 0.5 | Y26: 0.5 | Z26: 1 | AA26: 1 | AB26: 1 | AC26: 21 | AD26: 24 | AE26: 0.875
A27: Росавтодор | B27: https://rosavtodor.gov.ru/ | C27: 1 | D27: 1 | E27: 1 | F27: 1 | G27: 1 | H27: 1 | I27: 1 | J27: 1 | K27: 1 | L27: - | M27: 1 | N27: 1 | O27: 1 | P27: 1 | Q27: 1 | R27: 0.5 | S27: 0.5 | T27: 0.5 | U27: 0.5 | V27: - | W27: - | X27: 0.5 | Y27: 0.5 | Z27: 1 | AA27: 1 | AB27: 2 | AC27: 21 | AD27: 22 | AE27: 0.955
A28: Росаккредитация | B28: https://fsa.gov.ru/ | C28: 1 | D28: 1 | E28: 1 | F28: 1 | G28: 1 | H28: 0 | I28: 1 | J28: 1 | K28: 1 | L28: 1 | M28: 1 | N28: 1 | O28: 1 | P28: 1 | Q28: 1 | R28: 0.5 | S28: 0.5 | T28: 0 | U28: 0 | V28: 0.5 | W28: 0.5 | X28: 0.5 | Y28: 0 | Z28: 1 | AA28: 1 | AB28: 0 | AC28: 18.5 | AD28: 24 | AE28: 0.771
A29: Росалкогольрегулирование | B29: https://fsrar.gov.ru/ | C29: 1 | D29: 1 | E29: 0 | F29: 1 | G29: 1 | H29: 0 | I29: 1 | J29: 1 | K29: 1 | L29: 1 | M29: 1 | N29: 1 | O29: 1 | P29: 1 | Q29: 1 | R29: 0.5 | S29: 0.5 | T29: 0.5 | U29: 0 | V29: 0.5 | W29: 0.5 | X29: 0.5 | Y29: 0.5 | Z29: 1 | AA29: 1 | AB29: 1 | AC29: 19.5 | AD29: 24 | AE29: 0.813
A30: Росархив | B30: https://archives.gov.ru/ | C30: 1 | D30: 1 | E30: 1 | F30: 1 | G30: 1 | H30: 1 | I30: 1 | J30: 1 | K30: 1 | L30: - | M30: 1 | N30: 1 | O30: 1 | P30: 1 | Q30: 1 | R30: 0.5 | S30: 0.5 | T30: 0.5 | U30: 0.5 | V30: - | W30: - | X30: 0.5 | Y30: 0.5 | Z30: 1 | AA30: 2 | AB30: 2 | AC30: 22 | AD30: 22 | AE30: 1
A31: Росводресурсы | B31: https://voda.gov.ru/ | C31: 1 | D31: 1 | E31: 1 | F31: 1 | G31: 1 | H31: 1 | I31: 1 | J31: 1 | K31: 1 | L31: 1 | M31: 1 | N31: 1 | O31: 1 | P31: 1 | Q31: 1 | R31: 0.5 | S31: 0.5 | T31: 0.5 | U31: 0.5 | V31: - | W31: - | X31: 0.5 | Y31: 0.5 | Z31: 1 | AA31: 2 | AB31: 1 | AC31: 22 | AD31: 23 | AE31: 0.957
A32: Росгвардия | B32: https://www.rosguard.gov.ru/ | C32: 1 | D32: 1 | E32: 0 | F32: 1 | G32: 1 | H32: 0 | I32: 1 | J32: 1 | K32: 1 | L32: 1 | M32: 1 | N32: 1 | O32: 1 | P32: 1 | Q32: 1 | R32: 0.5 | S32: 0.5 | T32: 0.5 | U32: 0.5 | V32: - | W32: - | X32: 0 | Y32: 0.5 | Z32: 1 | AA32: 2 | AB32: 1 | AC32: 19.5 | AD32: 23 | AE32: 0.848
A33: Росгидромет | B33: http://www.meteorf.ru/ | C33: 1 | D33: 1 | E33: 1 | F33: 1 | G33: 1 | H33: 1 | I33: 1 | J33: 1 | K33: 1 | L33: 1 | M33: 1 | N33: 1 | O33: 1 | P33: 1 | Q33: 1 | R33: 0.5 | S33: 0.5 | T33: 0.5 | U33: 0.5 | V33: 0.5 | W33: 0.5 | X33: 0.5 | Y33: 0.5 | Z33: 1 | AA33: 2 | AB33: 2 | AC33: 24 | AD33: 24 | AE33: 1
A34: Росжелдор | B34: http://www.rlw.gov.ru/ | C34: 1 | D34: 1 | E34: 1 | F34: 1 | G34: 1 | H34: 1 | I34: 1 | J34: 1 | K34: 1 | L34: 1 | M34: 1 | N34: 1 | O34: 1 | P34: 1 | Q34: 1 | R34: 0.5 | S34: 0.5 | T34: 0.5 | U34: 0.5 | V34: - | W34: - | X34: 0.5 | Y34: 0.5 | Z34: 1 | AA34: 2 | AB34: 1 | AC34: 22 | AD34: 23 | AE34: 0.957
A35: Росздравнадзор | B35: https://roszdravnadzor.gov.ru/ | C35: 1 | D35: 1 | E35: 1 | F35: 1 | G35: 1 | H35: 1 | I35: 1 | J35: 1 | K35: 1 | L35: 1 | M35: 1 | N35: 1 | O35: 1 | P35: 1 | Q35: 1 | R35: 0.5 | S35: 0.5 | T35: 0 | U35: 0.5 | V35: 0.5 | W35: 0.5 | X35: 0.5 | Y35: 0.5 | Z35: 1 | AA35: 1 | AB35: 1 | AC35: 21.5 | AD35: 24 | AE35: 0.896
A36: Росимущество | B36: https://www.rosim.ru/ | C36: 1 | D36: 1 | E36: 1 | F36: 1 | G36: 1 | H36: 1 | I36: 1 | J36: 1 | K36: 1 | L36: 1 | M36: 1 | N36: 1 | O36: 1 | P36: 1 | Q36: 1 | R36: 0.5 | S36: 0.5 | T36: 0.5 | U36: 0.5 | V36: - | W36: - | X36: 0.5 | Y36: 0.5 | Z36: 1 | AA36: 2 | AB36: 0 | AC36: 21 | AD36: 23 | AE36: 0.913
A37: Роскомнадзор | B37: http://rkn.gov.ru/ | C37: 1 | D37: 1 | E37: 1 | F37: 1 | G37: 1 | H37: 1 | I37: 1 | J37: 1 | K37: 1 | L37: 1 | M37: 1 | N37: 1 | O37: 1 | P37: 1 | Q37: 1 | R37: 0.5 | S37: 0.5 | T37: 0.5 | U37: 0.5 | V37: 0.5 | W37: 0.5 | X37: 0.5 | Y37: 0.5 | Z37: 1 | AA37: 2 | AB37: 1 | AC37: 23 | AD37: 24 | AE37: 0.958
A38: Рослесхоз | B38: http://rosleshoz.gov.ru/ | C38: 1 | D38: 1 | E38: 0 | F38: 1 | G38: 1 | H38: 0 | I38: 0 | J38: 1 | K38: 1 | L38: 1 | M38: 1 | N38: 1 | O38: 1 | P38: 1 | Q38: 1 | R38: 0.5 | S38: 0.5 | T38: 0.5 | U38: 0.5 | V38: 0.5 | W38: 0.5 | X38: 0.5 | Y38: 0.5 | Z38: 0 | AA38: 2 | AB38: 2 | AC38: 20 | AD38: 24 | AE38: 0.833
A39: Росмолодёжь | B39: https://fadm.gov.ru/ | C39: 1 | D39: 1 | E39: 1 | F39: 1 | G39: 1 | H39: 0 | I39: 1 | J39: 1 | K39: 1 | L39: - | M39: 1 | N39: 1 | O39: 1 | P39: 1 | Q39: 1 | R39: 0.5 | S39: 0.5 | T39: 0.5 | U39: 0.5 | V39: - | W39: - | X39: 0.5 | Y39: 0.5 | Z39: 1 | AA39: 2 | AB39: 0 | AC39: 19 | AD39: 22 | AE39: 0.864
A40: Росморречфлот | B40: http://morflot.gov.ru/ | C40: 1 | D40: 1 | E40: 1 | F40: 1 | G40: 1 | H40: 1 | I40: 1 | J40: 1 | K40: 1 | L40: - | M40: 1 | N40: 1 | O40: 1 | P40: 1 | Q40: 1 | R40: 0.5 | S40: 0.5 | T40: 0.5 | U40: 0.5 | V40: - | W40: - | X40: 0.5 | Y40: 0.5 | Z40: 1 | AA40: 2 | AB40: 2 | AC40: 22 | AD40: 22 | AE40: 1
A41: Роснедра | B41: http://www.rosnedra.gov.ru/ | C41: 0 | D41: 1 | E41: 1 | F41: 1 | G41: 1 | H41: 1 | I41: 0 | J41: 1 | K41: 1 | L41: 1 | M41: 1 | N41: 1 | O41: 1 | P41: 1 | Q41: 1 | R41: 0.5 | S41: 0.5 | T41: 0.5 | U41: 0.5 | V41: - | W41: - | X41: 0.5 | Y41: 0.5 | Z41: 1 | AA41: 2 | AB41: 1 | AC41: 20 | AD41: 23 | AE41: 0.87
A42: Рособрнадзор | B42: http://obrnadzor.gov.ru/ | C42: 1 | D42: 1 | E42: 1 | F42: 1 | G42: 1 | H42: 0 | I42: 1 | J42: 1 | K42: 1 | L42: - | M42: 1 | N42: 1 | O42: 1 | P42: 1 | Q42: 1 | R42: 0.5 | S42: 0.5 | T42: 0.5 | U42: 0.5 | V42: 0.5 | W42: 0.5 | X42: 0.5 | Y42: 0.5 | Z42: 1 | AA42: 2 | AB42: 1 | AC42: 21 | AD42: 23 | AE42: 0.913
A43: Роспатент | B43: https://rospatent.gov.ru/ru | C43: 1 | D43: 1 | E43: 1 | F43: 1 | G43: 1 | H43: 1 | I43: 1 | J43: 1 | K43: 1 | L43: - | M43: 1 | N43: 1 | O43: 1 | P43: 1 | Q43: 1 | R43: 0.5 | S43: 0.5 | T43: 0.5 | U43: 0.5 | V43: 0.5 | W43: 0.5 | X43: 0.5 | Y43: 0.5 | Z43: 1 | AA43: 2 | AB43: 1 | AC43: 21 | AD43: 23 | AE43: 0.913
A44: Роспотребнадзор | B44: https://www.rospotrebnadzor.ru/ | C44: 1 | D44: 1 | E44: 0 | F44: 1 | G44: 1 | H44: 1 | I44: 1 | J44: 1 | K44: 1 | L44: 1 | M44: 1 | N44: 1 | O44: 1 | P44: 1 | Q44: 1 | R44: 0.5 | S44: 0.5 | T44: 0.5 | U44: 0.5 | V44: 0.5 | W44: 0.5 | X44: 0 | Y44: 0.5 | Z44: 1 | AA44: 2 | AB44: 2 | AC44: 22.5 | AD44: 24 | AE44: 0.938
A45: Росприроднадзор | B45: https://rpn.gov.ru/ | C45: 1 | D45: 1 | E45: 0 | F45: 1 | G45: 1 | H45: 0 | I45: 1 | J45: 1 | K45: 1 | L45: 1 | M45: 1 | N45: 1 | O45: 1 | P45: 1 | Q45: 1 | R45: 0.5 | S45: 0.5 | T45: 0.5 | U45: 0.5 | V45: 0.5 | W45: 0.5 | X45: 0.5 | Y45: 0.5 | Z45: 1 | AA45: 2 | AB45: 2 | AC45: 22 | AD45: 24 | AE45: 0.917
A46: Росреестр | B46: https://rosreestr.gov.ru/site/ | C46: 1 | D46: 1 | E46: 1 | F46: 1 | G46: 1 | H46: 0 | I46: 1 | J46: 1 | K46: 1 | L46: 1 | M46: 1 | N46: 1 | O46: 1 | P46: 1 | Q46: 1 | R46: 0.5 | S46: 0.5 | T46: 0.5 | U46: 0.5 | V46: 0.5 | W46: 0.5 | X46: 0.5 | Y46: 0.5 | Z46: 1 | AA46: 2 | AB46: 2 | AC46: 23 | AD46: 24 | AE46: 0.958
A47: Росрезерв | B47: https://rosrezerv.gov.ru/ | C47: 1 | D47: 1 | E47: 1 | F47: 1 | G47: 1 | H47: 1 | I47: 1 | J47: 1 | K47: 1 | L47: 1 | M47: 1 | N47: 1 | O47: 1 | P47: 1 | Q47: 0 | R47: 0.5 | S47: 0.5 | T47: 0.5 | U47: 0.5 | V47: - | W47: - | X47: 0.5 | Y47: 0.5 | Z47: - | AA47: 2 | AB47: 1 | AC47: 20 | AD47: 22 | AE47: 0.909
A48: Росрыболовство | B48: http://www.fish.gov.ru/ | C48: 1 | D48: 1 | E48: 1 | F48: 1 | G48: 1 | H48: 0 | I48: 1 | J48: 1 | K48: 1 | L48: 1 | M48: 1 | N48: 1 | O48: 1 | P48: 1 | Q48: 1 | R48: 0.5 | S48: 0.5 | T48: 0.5 | U48: 0.5 | V48: 0.5 | W48: 0.5 | X48: 0 | Y48: 0.5 | Z48: 1 | AA48: 1 | AB48: 1 | AC48: 20.5 | AD48: 24 | AE48: 0.854
A49: Россельхознадзор | B49: https://fsvps.gov.ru/ | C49: 1 | D49: 1 | E49: 1 | F49: 1 | G49: 1 | H49: 0 | I49: 0 | J49: 1 | K49: 1 | L49: 1 | M49: 1 | N49: 1 | O49: 1 | P49: 1 | Q49: 1 | R49: 0.5 | S49: 0.5 | T49: 0.5 | U49: 0.5 | V49: 0.5 | W49: 0.5 | X49: 0.5 | Y49: 0.5 | Z49: 1 | AA49: 2 | AB49: 0 | AC49: 19 | AD49: 24 | AE49: 0.792
A50: Россотрудничество | B50: http://rs.gov.ru/ru | C50: 1 | D50: 1 | E50: 1 | F50: 1 | G50: 1 | H50: 0 | I50: 1 | J50: 1 | K50: 1 | L50: 1 | M50: 0 | N50: 1 | O50: 1 | P50: 1 | Q50: 1 | R50: 0.5 | S50: 0.5 | T50: 0.5 | U50: 0.5 | V50: - | W50: - | X50: 0.5 | Y50: 0.5 | Z50: - | AA50: 2 | AB50: 1 | AC50: 19 | AD50: 22 | AE50: 0.864
A51: Росстандарт | B51: https://www.gost.ru/portal/gost | C51: 1 | D51: 1 | E51: 1 | F51: 1 | G51: 1 | H51: 1 | I51: 1 | J51: 1 | K51: 1 | L51: 1 | M51: 1 | N51: 1 | O51: 1 | P51: 1 | Q51: 1 | R51: 0.5 | S51: 0.5 | T51: 0.5 | U51: 0.5 | V51: 0.5 | W51: 0.5 | X51: 0.5 | Y51: 0.5 | Z51: 1 | AA51: 2 | AB51: 1 | AC51: 23 | AD51: 24 | AE51: 0.958
A52: Росстат | B52: https://rosstat.gov.ru/ | C52: 1 | D52: 1 | E52: 1 | F52: 1 | G52: 1 | H52: 1 | I52: 1 | J52: 1 | K52: 1 | L52: 1 | M52: 1 | N52: 1 | O52: 1 | P52: 1 | Q52: 1 | R52: 0.5 | S52: 0.5 | T52: 0.5 | U52: 0.5 | V52: - | W52: - | X52: 0.5 | Y52: 0.5 | Z52: 1 | AA52: 2 | AB52: 2 | AC52: 23 | AD52: 23 | AE52: 1
A53: Ростехнадзор | B53: http://www.gosnadzor.ru/ | C53: 1 | D53: 1 | E53: 1 | F53: 1 | G53: 1 | H53: 0 | I53: 1 | J53: 1 | K53: 1 | L53: 1 | M53: 1 | N53: 1 | O53: 1 | P53: 1 | Q53: 1 | R53: 0.5 | S53: 0.5 | T53: 0.5 | U53: 0.5 | V53: 0.5 | W53: 0.5 | X53: 0.5 | Y53: 0.5 | Z53: 1 | AA53: 2 | AB53: 1 | AC53: 22 | AD53: 24 | AE53: 0.917
A54: Ространснадзор | B54: https://rostransnadzor.gov.ru/ | C54: 1 | D54: 1 | E54: 1 | F54: 1 | G54: 1 | H54: 1 | I54: 0 | J54: 1 | K54: 1 | L54: 1 | M54: 1 | N54: 1 | O54: 1 | P54: 1 | Q54: 1 | R54: 0.5 | S54: 0.5 | T54: 0.5 | U54: 0.5 | V54: 0.5 | W54: 0.5 | X54: 0.5 | Y54: 0.5 | Z54: 1 | AA54: 2 | AB54: 2 | AC54: 23 | AD54: 24 | AE54: 0.958
A55: Роструд | B55: https://rostrud.gov.ru/ | C55: 1 | D55: 1 | E55: 1 | F55: 1 | G55: 1 | H55: 0 | I55: 1 | J55: 1 | K55: 1 | L55: 1 | M55: 1 | N55: 1 | O55: 1 | P55: 1 | Q55: 1 | R55: 0.5 | S55: 0.5 | T55: 0.5 | U55: 0.5 | V55: 0.5 | W55: 0.5 | X55: 0.5 | Y55: 0.5 | Z55: 1 | AA55: 2 | AB55: 1 | AC55: 22 | AD55: 24 | AE55: 0.917
A56: Ростуризм | B56: https://tourism.gov.ru/ | C56: 1 | D56: 1 | E56: 1 | F56: 1 | G56: 1 | H56: 1 | I56: 0 | J56: 1 | K56: 1 | L56: - | M56: 1 | N56: 1 | O56: 1 | P56: 1 | Q56: 1 | R56: 0.5 | S56: 0.5 | T56: 0.5 | U56: 0.5 | V56: - | W56: - | X56: 0.5 | Y56: 0.5 | Z56: 1 | AA56: 2 | AB56: 2 | AC56: 21 | AD56: 22 | AE56: 0.955
A57: Росфинмониторинг | B57: http://www.fedsfm.ru/ | C57: 1 | D57: 1 | E57: 0 | F57: 1 | G57: 1 | H57: 0 | I57: 1 | J57: 1 | K57: 1 | L57: 1 | M57: 0 | N57: 1 | O57: 1 | P57: 1 | Q57: 1 | R57: 0.5 | S57: 0.5 | T57: 0.5 | U57: 0 | V57: - | W57: - | X57: 0.5 | Y57: 0.5 | Z57: 0 | AA57: 1 | AB57: 1 | AC57: 16.5 | AD57: 23 | AE57: 0.717
A58: СВР России | B58: http://svr.gov.ru/ | C58: 1 | D58: 1 | E58: 1 | F58: 1 | G58: 1 | H58: 0 | I58: 1 | J58: 1 | K58: 1 | L58: - | M58: 0 | N58: 1 | O58: 1 | P58: 0 | Q58: 0 | R58: 0.5 | S58: 0.5 | T58: 0 | U58: 0 | V58: - | W58: - | X58: 0.5 | Y58: 0.5 | Z58: 0 | AA58: 1 | AB58: 2 | AC58: 16 | AD58: 22 | AE58: 0.727
A59: Управление делами Президента Российской Федерации | B59: https://udprf.ru/ | C59: 1 | D59: 1 | E59: 1 | F59: 1 | G59: 1 | H59: 0 | I59: 1 | J59: 1 | K59: 1 | L59: - | M59: 1 | N59: 1 | O59: 1 | P59: 1 | Q59: 0 | R59: 0.5 | S59: 0.5 | T59: 0.5 | U59: 0.5 | V59: - | W59: - | X59: 0.5 | Y59: 0.5 | Z59: - | AA59: 2 | AB59: 2 | AC59: 19 | AD59: 21 | AE59: 0.905
A60: ФАДН России | B60: http://fadn.gov.ru/ | C60: 1 | D60: 1 | E60: 1 | F60: 1 | G60: 1 | H60: 1 | I60: 1 | J60: 1 | K60: 1 | L60: - | M60: 0 | N60: 1 | O60: 1 | P60: 1 | Q60: 1 | R60: 0.5 | S60: 0.5 | T60: 0.5 | U60: 0.5 | V60: - | W60: - | X60: 0.5 | Y60: 0 | Z60: 1 | AA60: 1 | AB60: 1 | AC60: 18.5 | AD60: 22 | AE60: 0.841
A61: ФАС России | B61: https://fas.gov.ru/ | C61: 1 | D61: 1 | E61: 1 | F61: 1 | G61: 1 | H61: 1 | I61: 1 | J61: 1 | K61: 1 | L61: 1 | M61: 1 | N61: 1 | O61: 1 | P61: 1 | Q61: 1 | R61: 0.5 | S61: 0.5 | T61: 0.5 | U61: 0.5 | V61: 0.5 | W61: 0.5 | X61: 0.5 | Y61: 0.5 | Z61: 1 | AA61: 2 | AB61: 0 | AC61: 22 | AD61: 24 | AE61: 0.917
A62: Федеральная пробирная палата | B62: https://www.probpalata.ru/ | C62: 0 | D62: 1 | E62: 1 | F62: 1 | G62: 0 | H62: 0 | I62: 0 | J62: 1 | K62: 1 | L62: 1 | M62: 0 | N62: 1 | O62: 1 | P62: 1 | Q62: 1 | R62: 0.5 | S62: 0.5 | T62: 0 | U62: 0 | V62: - | W62: - | X62: 0.5 | Y62: 0.5 | Z62: - | AA62: 1 | AB62: 1 | AC62: 14 | AD62: 22 | AE62: 0.636
A63: ФМБА России | B63: https://fmba.gov.ru/ | C63: 1 | D63: 1 | E63: 1 | F63: 1 | G63: 1 | H63: 0 | I63: 1 | J63: 1 | K63: 1 | L63: 1 | M63: 1 | N63: 1 | O63: 1 | P63: 1 | Q63: 1 | R63: 0.5 | S63: 0.5 | T63: 0.5 | U63: 0.5 | V63: 0.5 | W63: 0.5 | X63: 0.5 | Y63: 0.5 | Z63: 1 | AA63: 1 | AB63: 2 | AC63: 22 | AD63: 24 | AE63: 0.917
A64: ФНС России | B64: https://www.nalog.ru/rn77/ | C64: 1 | D64: 1 | E64: 0 | F64: 1 | G64: 1 | H64: 1 | I64: 1 | J64: 1 | K64: 1 | L64: 1 | M64: 1 | N64: 1 | O64: 1 | P64: 1 | Q64: 1 | R64: 0.5 | S64: 0.5 | T64: 0.5 | U64: 0.5 | V64: 0.5 | W64: 0.5 | X64: 0.5 | Y64: 0.5 | Z64: 1 | AA64: 1 | AB64: 2 | AC64: 21 | AD64: 24 | AE64: 0.875
A65: ФСБ России | B65: http://www.fsb.ru/ | C65: 1 | D65: 1 | E65: 1 | F65: 1 | G65: 1 | H65: 0 | I65: 1 | J65: 1 | K65: 1 | L65: 1 | M65: 1 | N65: 1 | O65: 1 | P65: 0 | Q65: 1 | R65: 0.5 | S65: 0.5 | T65: 0 | U65: 0 | V65: - | W65: - | X65: 0.5 | Y65: 0 | Z65: 1 | AA65: 1 | AB65: 1 | AC65: 17.5 | AD65: 23 | AE65: 0.761
A66: ФСВТС России | B66: http://www.fsvts.gov.ru/ | C66: 1 | D66: 1 | E66: 1 | F66: 1 | G66: 1 | H66: 1 | I66: 1 | J66: 1 | K66: 1 | L66: 0 | M66: 0 | N66: 1 | O66: 1 | P66: 1 | Q66: - | R66: 0.5 | S66: 0.5 | T66: 0.5 | U66: 0.5 | V66: - | W66: - | X66: 0.5 | Y66: 0.5 | Z66: - | AA66: 1 | AB66: 1 | AC66: 17 | AD66: 21 | AE66: 0.81
A67: ФСИН России | B67: https://fsin.gov.ru/ | C67: 1 | D67: 1 | E67: 0 | F67: 1 | G67: 1 | H67: 1 | I67: 1 | J67: 1 | K67: 1 | L67: 1 | M67: 1 | N67: 1 | O67: 1 | P67: 1 | Q67: 1 | R67: 0.5 | S67: 0.5 | T67: 0.5 | U67: 0.5 | V67: - | W67: - | X67: 0.5 | Y67: 0.5 | Z67: 0 | AA67: 1 | AB67: 0 | AC67: 19 | AD67: 23 | AE67: 0.826
A68: ФСО России | B68: http://www.fso.gov.ru/ | C68: 1 | D68: 1 | E68: 1 | F68: 1 | G68: 0 | H68: 0 | I68: 0 | J68: 1 | K68: 1 | L68: 0 | M68: 0 | N68: 1 | O68: 1 | P68: 1 | Q68: 1 | R68: 0.5 | S68: 0.5 | T68: 0 | U68: 0 | V68: - | W68: - | X68: 0.5 | Y68: 0.5 | Z68: 1 | AA68: 1 | AB68: 1 | AC68: 15 | AD68: 23 | AE68: 0.652
A69: ФССП России | B69: https://fssp.gov.ru/ | C69: 1 | D69: 1 | E69: 1 | F69: 1 | G69: 1 | H69: 1 | I69: 1 | J69: 1 | K69: 1 | L69: 1 | M69: 1 | N69: 1 | O69: 1 | P69: 1 | Q69: 1 | R69: 0.5 | S69: 0.5 | T69: 0.5 | U69: 0.5 | V69: 0.5 | W69: 0.5 | X69: 0.5 | Y69: 0.5 | Z69: 1 | AA69: 2 | AB69: 1 | AC69: 23 | AD69: 24 | AE69: 0.958
A70: ФСТЭК России | B70: https://fstec.ru/ | C70: 0 | D70: 1 | E70: 1 | F70: 1 | G70: 1 | H70: 1 | I70: 1 | J70: 1 | K70: 1 | L70: 1 | M70: 0 | N70: 1 | O70: 1 | P70: 1 | Q70: 1 | R70: 0.5 | S70: 0 | T70: 0.5 | U70: 0 | V70: - | W70: - | X70: 0 | Y70: 0.5 | Z70: 1 | AA70: 1 | AB70: 0 | AC70: 16.5 | AD70: 23 | AE70: 0.717
A71: ФТС России | B71: https://customs.gov.ru/ | C71: 1 | D71: 1 | E71: 1 | F71: 1 | G71: 1 | H71: 1 | I71: 1 | J71: 1 | K71: 1 | L71: 1 | M71: 1 | N71: 1 | O71: 1 | P71: 1 | Q71: 1 | R71: 0.5 | S71: 0.5 | T71: 0.5 | U71: 0.5 | V71: - | W71: - | X71: 0.5 | Y71: 0.5 | Z71: 1 | AA71: 2 | AB71: 2 | AC71: 23 | AD71: 23 | AE71: 1

Sheet Реакц_запрос_8ФЗ
A1: Ведомство | B1: Ответ на запрос поступил | C1: Срок ответа соблюден по закону (30 дней) | D1: Сокращенный срок ответа (15 дней и меньше) | E1: Сколько вопросов раскрыто в ответе | F1: Читабельность текста ответа | G1: Итог | H1: Max | I1: Rate
A2: Главное управление специальных программ Президента Российской Федерации (ГУСП) | B2: 1 | C2: 1 | D2: 0 | E2: 3 | F2: 0 | G2: 5 | H2: 8 | I2: 0.625
A3: Государственная фельдъегерская служба Российской Федерации (ГФС России) | B3: 1 | C3: 1 | D3: 1 | E3: 3 | F3: 1 | G3: 7 | H3: 8 | I3: 0.875
A4: Казначейство России | B4: 1 | C4: 1 | D4: 0 | E4: 3 | F4: 2 | G4: 7 | H4: 8 | I4: 0.875
A5: МВД России | B5: 1 | C5: 1 | D5: 0 | E5: 1 | F5: 0 | G5: 3 | H5: 8 | I5: 0.375
A6: МИД России | B6: 1 | C6: 1 | D6: 1 | E6: 0 | F6: 2 | G6: 5 | H6: 8 | I6: 0.625
A7: Минвостокразвития России | B7: 1 | C7: 1 | D7: 0 | E7: 3 | F7: 1 | G7: 6 | H7: 8 | I7: 0.75
A8: Минздрав России | B8: 1 | C8: 1 | D8: 1 | E8: 3 | F8: 1 | G8: 7 | H8: 8 | I8: 0.875
A9: Минкультуры России | B9: 1 | C9: 1 | D9: 0 | E9: 2 | F9: 1 | G9: 5 | H9: 8 | I9: 0.625
A10: Минобороны России | B10: 1 | C10: 0 | D10: 0 | E10: 0 | F10: 0 | G10: 0 | H10: 8 | I10: 0
A11: Минобрнауки России | B11: 1 | C11: 1 | D11: 0 | E11: 2 | F11: 1 | G11: 5 | H11: 8 | I11: 0.625
A12: Минприроды России | B12: 1 | C12: 1 | D12: 1 | E12: 3 | F12: 1 | G12: 7 | H12: 8 | I12: 0.875
A13: Минпромторг России | B13: 1 | C13: 1 | D13: 0 | E13: 2 | F13: 1 | G13: 5 | H13: 8 | I13: 0.625
A14: Минпросвещения России | B14: 1 | C14: 1 | D14: 1 | E14: 3 | F14: 1 | G14: 7 | H14: 8 | I14: 0.875
A15: Минсельхоз России | B15: 1 | C15: 1 | D15: 1 | E15: 3 | F15: 1 | G15: 7 | H15: 8 | I15: 0.875
A16: Минспорт России | B16: 1 | C16: 1 | D16: 0 | E16: 1 | F16: 2 | G16: 5 | H16: 8 | I16: 0.625
A17: Минстрой России | B17: 1 | C17: 1 | D17: 0 | E17: 3 | F17: 1 | G17: 6 | H17: 8 | I17: 0.75
A18: Минтранс России | B18: 1 | C18: 1 | D18: 1 | E18: 3 | F18: 1 | G18: 7 | H18: 8 | I18: 0.875
A19: Минтруд России | B19: 1 | C19: 1 | D19: 1 | E19: 3 | F19: 1 | G19: 7 | H19: 8 | I19: 0.875
A20: Минфин России | B20: 1 | C20: 1 | D20: 0 | E20: 3 | F20: 1 | G20: 6 | H20: 8 | I20: 0.75
A21: Минцифры России | B21: 1 | C21: 1 | D21: 0 | E21: 3 | F21: 1 | G21: 6 | H21: 8 | I21: 0.75
A22: Минэкономразвития России | B22: 1 | C22: 1 | D22: 0 | E22: 3 | F22: 1 | G22: 6 | H22: 8 | I22: 0.75
A23: Минэнерго России | B23: 1 | C23: 1 | D23: 0 | E23: 3 | F23: 1 | G23: 6 | H23: 8 | I23: 0.75
A24: Минюст России | B24: 1 | C24: 1 | D24: 0 | E24: 3 | F24: 1 | G24: 6 | H24: 8 | I24: 0.75
A25: МЧС России | B25: 1 | C25: 1 | D25: 0 | E25: 3 | F25: 2 | G25: 7 | H25: 8 | I25: 0.875
A26: Росавиация | B26: 1 | C26: 1 | D26: 0 | E26: 2 | F26: 1 | G26: 5 | H26: 8 | I26: 0.625
A27: Росавтодор | B27: 1 | C27: 1 | D27: 0 | E27: 3 | F27: 1 | G27: 6 | H27: 8 | I27: 0.75
A28: Росаккредитация | B28: 1 | C28: 1 | D28: 0 | E28: 1 | F28: 1 | G28: 4 | H28: 8 | I28: 0.5
A29: Росалкогольрегулирование | B29: 1 | C29: 1 | D29: 1 | E29: 3 | F29: 2 | G29: 8 | H29: 8 | I29: 1
A30: Росархив | B30: 1 | C30: 1 | D30: 1 | E30: 3 | F30: 1 | G30: 7 | H30: 8 | I30: 0.875
A31: Росводресурсы | B31: 1 | C31: 1 | D31: 0 | E31: 2 | F31: 1 | G31: 5 | H31: 8 | I31: 0.625
A32: Росгвардия | B32: 1 | C32: 1 | D32: 1 | E32: 1 | F32: 1 | G32: 5 | H32: 8 | I32: 0.625
A33: Росгидромет | B33: 1 | C33: 1 | D33: 0 | E33: 3 | F33: 0 | G33: 5 | H33: 8 | I33: 0.625
A34: Росжелдор | B34: 0 | C34: 0 | D34: 0 | E34: 0 | F34: 0 | G34: 0 | H34: 8 | I34: 0
A35: Росздравнадзор | B35: 1 | C35: 1 | D35: 1 | E35: 2 | F35: 1 | G35: 6 | H35: 8 | I35: 0.75
A36: Росимущество | B36: 1 | C36: 1 | D36: 0 | E36: 3 | F36: 1 | G36: 6 | H36: 8 | I36: 0.75
A37: Роскомнадзор | B37: 1 | C37: 1 | D37: 0 | E37: 3 | F37: 1 | G37: 6 | H37: 8 | I37: 0.75
A38: Рослесхоз | B38: 1 | C38: 1 | D38: 0 | E38: 3 | F38: 1 | G38: 6 | H38: 8 | I38: 0.75
A39: Росмолодёжь | B39: 1 | C39: 1 | D39: 0 | E39: 3 | F39: 1 | G39: 6 | H39: 8 | I39: 0.75
A40: Росморречфлот | B40: 0 | C40: 0 | D40: 0 | E40: 0 | F40: 0 | G40: 0 | H40: 8 | I40: 0
A41: Роснедра | B41: 1 | C41: 1 | D41: 1 | E41: 3 | F41: 1 | G41: 7 | H41: 8 | I41: 0.875
A42: Рособрнадзор | B42: 1 | C42: 1 | D42: 1 | E42: 3 | F42: 1 | G42: 7 | H42: 8 | I42: 0.875
A43: Роспатент | B43: 0 | C43: 0 | D43: 0 | E43: 0 | F43: 0 | G43: 0 | H43: 8 | I43: 0
A44: Роспотребнадзор | B44: 1 | C44: 1 | D44: 1 | E44: 2 | F44: 2 | G44: 7 | H44: 8 | I44: 0.875
A45: Росприроднадзор | B45: 1 | C45: 1 | D45: 0 | E45: 3 | F45: 1 | G45: 6 | H45: 8 | I45: 0.75
A46: Росреестр | B46: 1 | C46: 1 | D46: 0 | E46: 3 | F46: 1 | G46: 6 | H46: 8 | I46: 0.75
A47: Росрезерв | B47: 1 | C47: 1 | D47: 1 | E47: 3 | F47: 1 | G47: 7 | H47: 8 | I47: 0.875
A48: Росрыболовство | B48: 1 | C48: 1 | D48: 1 | E48: 3 | F48: 1 | G48: 7 | H48: 8 | I48: 0.875
A49: Россельхознадзор | B49: 1 | C49: 1 | D49: 1 | E49: 3 | F49: 1 | G49: 7 | H49: 8 | I49: 0.875
A50: Россотрудничество | B50: 1 | C50: 1 | D50: 0 | E50: 3 | F50: 1 | G50: 6 | H50: 8 | I50: 0.75
A51: Росстандарт | B51: 1 | C51: 1 | D51: 0 | E51: 1 | F51: 0 | G51: 3 | H51: 8 | I51: 0.375
A52: Росстат | B52: 1 | C52: 1 | D52: 1 | E52: 3 | F52: 1 | G52: 7 | H52: 8 | I52: 0.875
A53: Ростехнадзор | B53: 1 | C53: 1 | D53: 0 | E53: 3 | F53: 1 | G53: 6 | H53: 8 | I53: 0.75
A54: Ространснадзор | B54: 1 | C54: 1 | D54: 0 | E54: 2 | F54: 1 | G54: 5 | H54: 8 | I54: 0.625
A55: Роструд | B55: 1 | C55: 1 | D55: 0 | E55: 2 | F55: 1 | G55: 5 | H55: 8 | I55: 0.625
A56: Ростуризм | B56: 0 | C56: 0 | D56: 0 | E56: 0 | F56: 0 | G56: 0 | H56: 8 | I56: 0
A57: Росфинмониторинг | B57: 1 | C57: 1 | D57: 1 | E57: 2 | F57: 1 | G57: 6 | H57: 8 | I57: 0.75
A58: СВР России | B58: 0 | C58: 0 | D58: 0 | E58: 0 | F58: 0 | G58: 0 | H58: 8 | I58: 0
A59: Управление делами Президента Российской Федерации | B59: 0 | C59: 0 | D59: 0 | E59: 0 | F59: 0 | G59: 0 | H59: 8 | I59: 0
A60: ФАДН России | B60: 1 | C60: 1 | D60: 0 | E60: 3 | F60: 1 | G60: 6 | H60: 8 | I60: 0.75
A61: ФАС России | B61: 1 | C61: 1 | D61: 1 | E61: 3 | F61: 1 | G61: 7 | H61: 8 | I61: 0.875
A62: Федеральная пробирная палата | B62: 1 | C62: 1 | D62: 1 | E62: 3 | F62: 1 | G62: 7 | H62: 8 | I62: 0.875
A63: ФМБА России | B63: 1 | C63: 0 | D63: 0 | E63: 2 | F63: 2 | G63: 5 | H63: 8 | I63: 0.625
A64: ФНС России | B64: 1 | C64: 1 | D64: 0 | E64: 3 | F64: 1 | G64: 6 | H64: 8 | I64: 0.75
A65: ФСБ России | B65: 1 | C65: 1 | D65: 0 | E65: 1 | F65: 1 | G65: 4 | H65: 8 | I65: 0.5
A66: ФСВТС России | B66: 1 | C66: 1 | D66: 1 | E66: 2 | F66: 0 | G66: 5 | H66: 8 | I66: 0.625
A67: ФСИН России | B67: 0 | C67: 0 | D67: 0 | E67: 0 | F67: 0 | G67: 0 | H67: 8 | I67: 0
A68: ФСО России | B68: 1 | C68: 1 | D68: 0 | E68: 0 | F68: 1 | G68: 3 | H68: 8 | I68: 0.375
A69: ФССП России | B69: 1 | C69: 1 | D69: 0 | E69: 3 | F69: 1 | G69: 6 | H69: 8 | I69: 0.75
A70: ФСТЭК России | B70: 1 | C70: 1 | D70: 1 | E70: 3 | F70: 0 | G70: 6 | H70: 8 | I70: 0.75
A71: ФТС России | B71: 1 | C71: 1 | D71: 0 | E71: 3 | F71: 1 | G71: 6 | H71: 8 | I71: 0.75

Sheet Журн_запрос
B1: Доступность контактов 1 | D1: Доступность контактов 2 | F1: Процесс взаимодействия 1 | I1: Процесс взаимодействия 2 | L1: Качество ответа 1 | O1: Качество ответа 2
A2: Ведомство | B2: Указаны контакты пресс-службы | C2: Контакты персонифицированы | D2: Указаны контакты пресс-службы | E2: Контакты персонифицированы | F2: Сообщение о получении запроса | G2: Использование неформальных каналов | H2: Соблюдены сроки ответа/отказа | I2: Сообщение о получении запроса | J2: Использование неформальных каналов | K2: Соблюдены сроки ответа/отказа | L2: Содержание ответа | M2: Читабельность ответа ИСХ | N2: Читабельность ответа итог | O2: Содержание ответа | P2: Читабельность ответа ИСХ | Q2: Читабельность ответа итог | R2: Итог | S2: Rate
A3: Главное управление специальных программ Президента Российской Федерации (ГУСП) | B3: 0 | C3: 0 | D3: 0 | E3: 0 | F3: 0 | G3: 1 | H3: 1 | I3: 1 | J3: 1 | K3: 1 | L3: 1 | M3: 23.44 | N3: 0 | O3: 2 | P3: 14.49 | Q3: 2 | R3: =SUM(B3:L3,N3,O3,Q3) -> 10 | S3: =R3/[1]Коды!$C$20 -> 0.5
A4: Государственная фельдъегерская служба Российской Федерации (ГФС России) | B4: 0 | C4: 0 | D4: 0 | E4: 0 | F4: 0 | G4: 0 | H4: 0 | I4: 0 | J4: 0 | K4: 0 | L4: 0 | M4: 0 | N4: 0 | O4: 0 | P4: 0 | Q4: 0 | R4: =SUM(B4:L4,N4,O4,Q4) -> 0 | S4: =R4/[1]Коды!$C$20 -> 0
A5: Казначейство России | B5: 1 | C5: 1 | D5: 1 | E5: 1 | F5: 0 | G5: 0 | H5: 0 | I5: 1 | J5: 1 | K5: 1 | L5: 0 | M5: 0 | N5: 0 | O5: 2 | P5: 26.02 | Q5: 0 | R5: =SUM(B5:L5,N5,O5,Q5) -> 9 | S5: =R5/[1]Коды!$C$20 -> 0.45
A6: МВД России | B6: 1 | C6: 0 | D6: 1 | E6: 0 | F6: 0 | G6: 1 | H6: 1 | I6: 0 | J6: 0 | K6: 0 | L6: 1 | M6: 14.29 | N6: 2 | O6: 0 | P6: 0 | Q6: 0 | R6: =SUM(B6:L6,N6,O6,Q6) -> 7 | S6: =R6/[1]Коды!$C$20 -> 0.35
A7: МИД России | B7: 1 | C7: 1 | D7: 1 | E7: 1 | F7: 0 | G7: 0 | H7: 0 | I7: 0 | J7: 0 | K7: 0 | L7: 0 | M7: 0 | N7: 0 | O7: 0 | P7: 0 | Q7: 0 | R7: =SUM(B7:L7,N7,O7,Q7) -> 4 | S7: =R7/[1]Коды!$C$20 -> 0.2
A8: Минвостокразвития России | B8: 1 | C8: 0 | D8: 1 | E8: 0 | F8: 0 | G8: 0 | H8: 0 | I8: 0 | J8: 0 | K8: 0 | L8: 0 | M8: 0 | N8: 0 | O8: 0 | P8: 0 | Q8: 0 | R8: =SUM(B8:L8,N8,O8,Q8) -> 2 | S8: =R8/[1]Коды!$C$20 -> 0.1
A9: Минздрав России | B9: 1 | C9: 0 | D9: 1 | E9: 0 | F9: 0 | G9: 1 | H9: 1 | I9: 1 | J9: 2 | K9: 1 | L9: 1 | M9: 13.62 | N9: 2 | O9: 0 | P9: 0 | Q9: 0 | R9: =SUM(B9:L9,N9,O9,Q9) -> 11 | S9: =R9/[1]Коды!$C$20 -> 0.55
A10: Минкомсвязь России | B10: 1 | C10: 0 | D10: 1 | E10: 0 | F10: 1 | G10: 2 | H10: 1 | I10: 1 | J10: 0 | K10: 1 | L10: 2 | M10: 14.49 | N10: 2 | O10: 0 | P10: 0 | Q10: 0 | R10: =SUM(B10:L10,N10,O10,Q10) -> 12 | S10: =R10/[1]Коды!$C$20 -> 0.6
A11: Минкультуры России | B11: 1 | C11: 1 | D11: 1 | E11: 0 | F11: 0 | G11: 0 | H11: 0 | I11: 0 | J11: 0 | K11: 0 | L11: 0 | M11: 0 | N11: 0 | O11: 0 | P11: 0 | Q11: 0 | R11: =SUM(B11:L11,N11,O11,Q11) -> 3 | S11: =R11/[1]Коды!$C$20 -> 0.15
A12: Минобороны России | B12: 1 | C12: 0 | D12: 1 | E12: 0 | F12: 0 | G12: 0 | H12: 0 | I12: 0 | J12: 0 | K12: 0 | L12: 0 | M12: 0 | N12: 0 | O12: 0 | P12: 0 | Q12: 0 | R12: =SUM(B12:L12,N12,O12,Q12) -> 2 | S12: =R12/[1]Коды!$C$20 -> 0.1
A13: Минобрнауки России | B13: 1 | C13: 0 | D13: 1 | E13: 0 | F13: 0 | G13: 0 | H13: 0 | I13: 0 | J13: 0 | K13: 0 | L13: 0 | M13: 0 | N13: 0 | O13: 0 | P13: 0 | Q13: 0 | R13: =SUM(B13:L13,N13,O13,Q13) -> 2 | S13: =R13/[1]Коды!$C$20 -> 0.1
A14: Минприроды России | B14: 1 | C14: 0 | D14: 1 | E14: 1 | F14: 0 | G14: 0 | H14: 0 | I14: 0 | J14: 0 | K14: 0 | L14: 0 | M14: 0 | N14: 0 | O14: 0 | P14: 0 | Q14: 0 | R14: =SUM(B14:L14,N14,O14,Q14) -> 3 | S14: =R14/[1]Коды!$C$20 -> 0.15
A15: Минпромторг России | B15: 1 | C15: 0 | D15: 1 | E15: 1 | F15: 0 | G15: 2 | H15: 0 | I15: 0 | J15: 0 | K15: 0 | L15: 2 | M15: 19.49 | N15: 0 | O15: 0 | P15: 0 | Q15: 0 | R15: =SUM(B15:L15,N15,O15,Q15) -> 7 | S15: =R15/[1]Коды!$C$20 -> 0.35
A16: Минпросвещения России | B16: 1 | C16: 0 | D16: 1 | E16: 0 | F16: 0 | G16: 0 | H16: 0 | I16: 1 | J16: 1 | K16: 1 | L16: 0 | M16: 0 | N16: 0 | O16: 2 | P16: 50.06 | Q16: 0 | R16: =SUM(B16:L16,N16,O16,Q16) -> 7 | S16: =R16/[1]Коды!$C$20 -> 0.35
A17: Минсельхоз России | B17: 1 | C17: 0 | D17: 1 | E17: 1 | F17: 1 | G17: 2 | H17: 1 | I17: 1 | J17: 1 | K17: 1 | L17: 2 | M17: 20.59 | N17: 0 | O17: 2 | P17: 18.66 | Q17: 0 | R17: =SUM(B17:L17,N17,O17,Q17) -> 14 | S17: =R17/[1]Коды!$C$20 -> 0.7
A18: Минспорт России | B18: 1 | C18: 0 | D18: 1 | E18: 0 | F18: 0 | G18: 0 | H18: 0 | I18: 1 | J18: 0 | K18: 1 | L18: 0 | M18: 0 | N18: 0 | O18: 2 | P18: 16.74 | Q18: 1 | R18: =SUM(B18:L18,N18,O18,Q18) -> 7 | S18: =R18/[1]Коды!$C$20 -> 0.35
A19: Минстрой России | B19: 1 | C19: 0 | D19: 1 | E19: 0 | F19: 0 | G19: 0 | H19: 0 | I19: 0 | J19: 0 | K19: 0 | L19: 0 | M19: 0 | N19: 0 | O19: 0 | P19: 0 | Q19: 0 | R19: =SUM(B19:L19,N19,O19,Q19) -> 2 | S19: =R19/[1]Коды!$C$20 -> 0.1
A20: Минтранс России | B20: 1 | C20: 1 | D20: 1 | E20: 1 | F20: 0 | G20: 0 | H20: 0 | I20: 0 | J20: 0 | K20: 0 | L20: 0 | M20: 0 | N20: 0 | O20: 0 | P20: 0 | Q20: 0 | R20: =SUM(B20:L20,N20,O20,Q20) -> 4 | S20: =R20/[1]Коды!$C$20 -> 0.2
A21: Минтруд России | B21: 1 | C21: 0 | D21: 1 | E21: 0 | F21: 0 | G21: 2 | H21: 1 | I21: 0 | J21: 0 | K21: 0 | L21: 2 | M21: 14.84 | N21: 2 | O21: 0 | P21: 0 | Q21: 0 | R21: =SUM(B21:L21,N21,O21,Q21) -> 9 | S21: =R21/[1]Коды!$C$20 -> 0.45
A22: Минфин России | B22: 1 | C22: 0 | D22: 1 | E22: 0 | F22: 0 | G22: 1 | H22: 1 | I22: 1 | J22: 0 | K22: 1 | L22: 2 | M22: 15.36 | N22: 1 | O22: 1 | P22: 6.96 | Q22: 2 | R22: =SUM(B22:L22,N22,O22,Q22) -> 12 | S22: =R22/[1]Коды!$C$20 -> 0.6
A23: Минэкономразвития России | B23: 1 | C23: 0 | D23: 1 | E23: 1 | F23: 0 | G23: 1 | H23: 1 | I23: 0 | J23: 0 | K23: 0 | L23: 1 | M23: 11.75 | N23: 2 | O23: 0 | P23: 0 | Q23: 0 | R23: =SUM(B23:L23,N23,O23,Q23) -> 8 | S23: =R23/[1]Коды!$C$20 -> 0.4
A24: Минэнерго России | B24: 1 | C24: 1 | D24: 1 | E24: 1 | F24: 0 | G24: 1 | H24: 1 | I24: 0 | J24: 0 | K24: 0 | L24: 1 | M24: 7.27 | N24: 2 | O24: 0 | P24: 0 | Q24: 0 | R24: =SUM(B24:L24,N24,O24,Q24) -> 9 | S24: =R24/[1]Коды!$C$20 -> 0.45
A25: Минюст России | B25: 1 | C25: 0 | D25: 1 | E25: 0 | F25: 0 | G25: 1 | H25: 1 | I25: 1 | J25: 1 | K25: 1 | L25: 2 | M25: 12.55 | N25: 2 | O25: 2 | P25: 26.46 | Q25: 0 | R25: =SUM(B25:L25,N25,O25,Q25) -> 13 | S25: =R25/[1]Коды!$C$20 -> 0.65
A26: МЧС России | B26: 1 | C26: 1 | D26: 1 | E26: 0 | F26: 0 | G26: 1 | H26: 1 | I26: 0 | J26: 0 | K26: 1 | L26: 2 | M26: 16.42 | N26: 1 | O26: 1 | P26: 13.31 | Q26: 2 | R26: =SUM(B26:L26,N26,O26,Q26) -> 12 | S26: =R26/[1]Коды!$C$20 -> 0.6
A27: Росавиация | B27: 1 | C27: 1 | D27: 1 | E27: 1 | F27: 1 | G27: 1 | H27: 0 | I27: 0 | J27: 0 | K27: 0 | L27: 0 | M27: 0 | N27: 0 | O27: 0 | P27: 0 | Q27: 0 | R27: =SUM(B27:L27,N27,O27,Q27) -> 6 | S27: =R27/[1]Коды!$C$20 -> 0.3
A28: Росавтодор | B28: 1 | C28: 0 | D28: 1 | E28: 1 | F28: 1 | G28: 1 | H28: 1 | I28: 1 | J28: 0 | K28: 0 | L28: 2 | M28: 16.87 | N28: 1 | O28: 0 | P28: 0 | Q28: 0 | R28: =SUM(B28:L28,N28,O28,Q28) -> 10 | S28: =R28/[1]Коды!$C$20 -> 0.5
A29: Росаккредитация | B29: 1 | C29: 0 | D29: 1 | E29: 0 | F29: 1 | G29: 2 | H29: 1 | I29: 1 | J29: 0 | K29: 1 | L29: 2 | M29: 15.36 | N29: 1 | O29: 2 | P29: 16.79 | Q29: 1 | R29: =SUM(B29:L29,N29,O29,Q29) -> 14 | S29: =R29/[1]Коды!$C$20 -> 0.7
A30: Росалкогольрегулирование | B30: 1 | C30: 0 | D30: 1 | E30: 0 | F30: 1 | G30: 2 | H30: 1 | I30: 1 | J30: 1 | K30: 1 | L30: 2 | M30: 12.16 | N30: 2 | O30: 1 | P30: 19.82 | Q30: 0 | R30: =SUM(B30:L30,N30,O30,Q30) -> 14 | S30: =R30/[1]Коды!$C$20 -> 0.7
A31: Росархив | B31: 1 | C31: 0 | D31: 1 | E31: 1 | F31: 1 | G31: 2 | H31: 1 | I31: 0 | J31: 0 | K31: 0 | L31: 2 | M31: 17.45 | N31: 1 | O31: 0 | P31: 0 | Q31: 0 | R31: =SUM(B31:L31,N31,O31,Q31) -> 10 | S31: =R31/[1]Коды!$C$20 -> 0.5
A32: Росводресурсы | B32: 1 | C32: 1 | D32: 1 | E32: 1 | F32: 0 | G32: 1 | H32: 1 | I32: 0 | J32: 0 | K32: 0 | L32: 2 | M32: 16.76 | N32: 1 | O32: 0 | P32: 0 | Q32: 0 | R32: =SUM(B32:L32,N32,O32,Q32) -> 9 | S32: =R32/[1]Коды!$C$20 -> 0.45
A33: Росгвардия | B33: 1 | C33: 0 | D33: 1 | E33: 0 | F33: 1 | G33: 2 | H33: 1 | I33: 0 | J33: 0 | K33: 0 | L33: 1 | M33: 21.71 | N33: 0 | O33: 0 | P33: 0 | Q33: 0 | R33: =SUM(B33:L33,N33,O33,Q33) -> 7 | S33: =R33/[1]Коды!$C$20 -> 0.35
A34: Росгидромет | B34: 1 | C34: 1 | D34: 1 | E34: 1 | F34: 1 | G34: 2 | H34: 1 | I34: 0 | J34: 0 | K34: 0 | L34: 2 | M34: 13.85 | N34: 2 | O34: 0 | P34: 0 | Q34: 0 | R34: =SUM(B34:L34,N34,O34,Q34) -> 12 | S34: =R34/[1]Коды!$C$20 -> 0.6
A35: Росжелдор | B35: 1 | C35: 1 | D35: 1 | E35: 1 | F35: 1 | G35: 1 | H35: 0 | I35: 0 | J35: 0 | K35: 0 | L35: 0 | M35: 0 | N35: 0 | O35: 0 | P35: 0 | Q35: 0 | R35: =SUM(B35:L35,N35,O35,Q35) -> 6 | S35: =R35/[1]Коды!$C$20 -> 0.3
A36: Росздравнадзор | B36: 1 | C36: 1 | D36: 1 | E36: 1 | F36: 0 | G36: 0 | H36: 0 | I36: 0 | J36: 0 | K36: 0 | L36: 0 | M36: 0 | N36: 0 | O36: 0 | P36: 0 | Q36: 0 | R36: =SUM(B36:L36,N36,O36,Q36) -> 4 | S36: =R36/[1]Коды!$C$20 -> 0.2
A37: Росимущество | B37: 1 | C37: 0 | D37: 1 | E37: 1 | F37: 1 | G37: 2 | H37: 1 | I37: 0 | J37: 0 | K37: 0 | L37: 1 | M37: 20.4 | N37: 0 | O37: 0 | P37: 0 | Q37: 0 | R37: =SUM(B37:L37,N37,O37,Q37) -> 8 | S37: =R37/[1]Коды!$C$20 -> 0.4
A38: Роскомнадзор | B38: 1 | C38: 0 | D38: 1 | E38: 0 | F38: 0 | G38: 0 | H38: 0 | I38: 1 | J38: 1 | K38: 1 | L38: 0 | M38: 0 | N38: 0 | O38: 2 | P38: 21.25 | Q38: 0 | R38: =SUM(B38:L38,N38,O38,Q38) -> 7 | S38: =R38/[1]Коды!$C$20 -> 0.35
A39: Рослесхоз | B39: 1 | C39: 0 | D39: 1 | E39: 0 | F39: 0 | G39: 1 | H39: 1 | I39: 0 | J39: 0 | K39: 0 | L39: 0 | M39: 12.55 | N39: 2 | O39: 0 | P39: 0 | Q39: 0 | R39: =SUM(B39:L39,N39,O39,Q39) -> 6 | S39: =R39/[1]Коды!$C$20 -> 0.3
A40: Росмолодёжь | B40: 1 | C40: 0 | D40: 1 | E40: 0 | F40: 1 | G40: 2 | H40: 1 | I40: 1 | J40: 1 | K40: 1 | L40: 2 | M40: 16.47 | N40: 1 | O40: 2 | P40: 26.03 | Q40: 0 | R40: =SUM(B40:L40,N40,O40,Q40) -> 14 | S40: =R40/[1]Коды!$C$20 -> 0.7
A41: Росморречфлот | B41: 1 | C41: 1 | D41: 1 | E41: 0 | F41: 0 | G41: 0 | H41: 0 | I41: 0 | J41: 0 | K41: 0 | L41: 0 | M41: 0 | N41: 0 | O41: 0 | P41: 0 | Q41: 0 | R41: =SUM(B41:L41,N41,O41,Q41) -> 3 | S41: =R41/[1]Коды!$C$20 -> 0.15
A42: Роснедра | B42: 1 | C42: 0 | D42: 1 | E42: 0 | F42: 0 | G42: 0 | H42: 0 | I42: 0 | J42: 0 | K42: 0 | L42: 0 | M42: 0 | N42: 0 | O42: 0 | P42: 0 | Q42: 0 | R42: =SUM(B42:L42,N42,O42,Q42) -> 2 | S42: =R42/[1]Коды!$C$20 -> 0.1
A43: Рособрнадзор | B43: 1 | C43: 0 | D43: 1 | E43: 0 | F43: 0 | G43: 1 | H43: 1 | I43: 0 | J43: 0 | K43: 0 | L43: 2 | M43: 11.32 | N43: 2 | O43: 0 | P43: 0 | Q43: 0 | R43: =SUM(B43:L43,N43,O43,Q43) -> 8 | S43: =R43/[1]Коды!$C$20 -> 0.4
A44: Роспатент | B44: 1 | C44: 0 | D44: 1 | E44: 0 | F44: 0 | G44: 0 | H44: 0 | I44: 1 | J44: 0 | K44: 0 | L44: 0 | M44: 0 | N44: 0 | O44: 0 | P44: 0 | Q44: 0 | R44: =SUM(B44:L44,N44,O44,Q44) -> 3 | S44: =R44/[1]Коды!$C$20 -> 0.15
A45: Роспотребнадзор | B45: 1 | C45: 0 | D45: 1 | E45: 0 | F45: 0 | G45: 0 | H45: 0 | I45: 0 | J45: 0 | K45: 0 | L45: 0 | M45: 0 | N45: 0 | O45: 0 | P45: 0 | Q45: 0 | R45: =SUM(B45:L45,N45,O45,Q45) -> 2 | S45: =R45/[1]Коды!$C$20 -> 0.1
A46: Росприроднадзор | B46: 1 | C46: 0 | D46: 1 | E46: 0 | F46: 0 | G46: 0 | H46: 0 | I46: 0 | J46: 0 | K46: 0 | L46: 0 | M46: 0 | N46: 0 | O46: 0 | P46: 0 | Q46: 0 | R46: =SUM(B46:L46,N46,O46,Q46) -> 2 | S46: =R46/[1]Коды!$C$20 -> 0.1
A47: Росреестр | B47: 1 | C47: 0 | D47: 1 | E47: 1 | F47: 0 | G47: 1 | H47: 1 | I47: 0 | J47: 0 | K47: 1 | L47: 2 | M47: 17.21 | N47: 1 | O47: 2 | P47: 24.26 | Q47: 0 | R47: =SUM(B47:L47,N47,O47,Q47) -> 11 | S47: =R47/[1]Коды!$C$20 -> 0.55
A48: Росрезерв | B48: 1 | C48: 0 | D48: 1 | E48: 0 | F48: 0 | G48: 0 | H48: 0 | I48: 1 | J48: 1 | K48: 1 | L48: 0 | M48: 0 | N48: 0 | O48: 2 | P48: 17.73 | Q48: 1 | R48: =SUM(B48:L48,N48,O48,Q48) -> 8 | S48: =R48/[1]Коды!$C$20 -> 0.4
A49: Росрыболовство | B49: 1 | C49: 0 | D49: 1 | E49: 1 | F49: 1 | G49: 1 | H49: 0 | I49: 0 | J49: 0 | K49: 0 | L49: 0 | M49: 0 | N49: 0 | O49: 0 | P49: 0 | Q49: 0 | R49: =SUM(B49:L49,N49,O49,Q49) -> 5 | S49: =R49/[1]Коды!$C$20 -> 0.25
A50: Россельхознадзор | B50: 0 | C50: 0 | D50: 0 | E50: 0 | F50: 1 | G50: 2 | H50: 1 | I50: 1 | J50: 1 | K50: 1 | L50: 2 | M50: 12.55 | N50: 2 | O50: 2 | P50: 15.03 | Q50: 1 | R50: =SUM(B50:L50,N50,O50,Q50) -> 14 | S50: =R50/[1]Коды!$C$20 -> 0.7
A51: Россотрудничество | B51: 1 | C51: 0 | D51: 1 | E51: 0 | F51: 0 | G51: 1 | H51: 1 | I51: 0 | J51: 0 | K51: 0 | L51: 2 | M51: 19.09 | N51: 0 | O51: 0 | P51: 0 | Q51: 0 | R51: =SUM(B51:L51,N51,O51,Q51) -> 6 | S51: =R51/[1]Коды!$C$20 -> 0.3
A52: Росстандарт | B52: 1 | C52: 1 | D52: 1 | E52: 1 | F52: 0 | G52: 0 | H52: 0 | I52: 0 | J52: 0 | K52: 0 | L52: 0 | M52: 0 | N52: 0 | O52: 0 | P52: 0 | Q52: 0 | R52: =SUM(B52:L52,N52,O52,Q52) -> 4 | S52: =R52/[1]Коды!$C$20 -> 0.2
A53: Росстат | B53: 1 | C53: 1 | D53: 1 | E53: 1 | F53: 1 | G53: 1 | H53: 1 | I53: 1 | J53: 1 | K53: 1 | L53: 1 | M53: 8.89 | N53: 2 | O53: 2 | P53: 19.06 | Q53: 0 | R53: =SUM(B53:L53,N53,O53,Q53) -> 15 | S53: =R53/[1]Коды!$C$20 -> 0.75
A54: Ростехнадзор | B54: 1 | C54: 0 | D54: 1 | E54: 0 | F54: 0 | G54: 1 | H54: 1 | I54: 1 | J54: 0 | K54: 1 | L54: 1 | M54: 10.88 | N54: 2 | O54: 0 | P54: 29.37 | Q54: 0 | R54: =SUM(B54:L54,N54,O54,Q54) -> 9 | S54: =R54/[1]Коды!$C$20 -> 0.45
A55: Ространснадзор | B55: 1 | C55: 1 | D55: 1 | E55: 1 | F55: 0 | G55: 0 | H55: 0 | I55: 1 | J55: 2 | K55: 1 | L55: 0 | M55: 0 | N55: 0 | O55: 2 | P55: 19.42 | Q55: 0 | R55: =SUM(B55:L55,N55,O55,Q55) -> 10 | S55: =R55/[1]Коды!$C$20 -> 0.5
A56: Роструд | B56: 1 | C56: 1 | D56: 1 | E56: 0 | F56: 1 | G56: 1 | H56: 1 | I56: 0 | J56: 0 | K56: 0 | L56: 2 | M56: 12.99 | N56: 2 | O56: 0 | P56: 0 | Q56: 0 | R56: =SUM(B56:L56,N56,O56,Q56) -> 10 | S56: =R56/[1]Коды!$C$20 -> 0.5
A57: Ростуризм | B57: 1 | C57: 0 | D57: 1 | E57: 0 | F57: 0 | G57: 0 | H57: 0 | I57: 0 | J57: 0 | K57: 0 | L57: 0 | M57: 0 | N57: 0 | O57: 0 | P57: 0 | Q57: 0 | R57: =SUM(B57:L57,N57,O57,Q57) -> 2 | S57: =R57/[1]Коды!$C$20 -> 0.1
A58: Росфинмониторинг | B58: 1 | C58: 1 | D58: 1 | E58: 1 | F58: 0 | G58: 1 | H58: 1 | I58: 0 | J58: 0 | K58: 0 | L58: 1 | M58: 13.75 | N58: 2 | O58: 0 | P58: 0 | Q58: 0 | R58: =SUM(B58:L58,N58,O58,Q58) -> 9 | S58: =R58/[1]Коды!$C$20 -> 0.45
A59: СВР России | B59: 1 | C59: 0 | D59: 1 | E59: 0 | F59: 0 | G59: 0 | H59: 1 | I59: 0 | J59: 0 | K59: 0 | L59: 0 | M59: 8.89 | N59: 2 | O59: 0 | P59: 0 | Q59: 0 | R59: =SUM(B59:L59,N59,O59,Q59) -> 5 | S59: =R59/[1]Коды!$C$20 -> 0.25
A60: Управление делами Президента Российской Федерации | B60: 1 | C60: 0 | D60: 1 | E60: 1 | F60: 0 | G60: 0 | H60: 0 | I60: 0 | J60: 0 | K60: 0 | L60: 0 | M60: 0 | N60: 0 | O60: 0 | P60: 0 | Q60: 0 | R60: =SUM(B60:L60,N60,O60,Q60) -> 3 | S60: =R60/[1]Коды!$C$20 -> 0.15
A61: ФАДН России | B61: 1 | C61: 0 | D61: 1 | E61: 0 | F61: 0 | G61: 1 | H61: 0 | I61: 0 | J61: 0 | K61: 0 | L61: 0 | M61: 0 | N61: 0 | O61: 0 | P61: 0 | Q61: 0 | R61: =SUM(B61:L61,N61,O61,Q61) -> 3 | S61: =R61/[1]Коды!$C$20 -> 0.15
A62: ФАС России | B62: 1 | C62: 1 | D62: 1 | E62: 1 | F62: 1 | G62: 1 | H62: 1 | I62: 1 | J62: 0 | K62: 1 | L62: 1 | M62: 10.73 | N62: 2 | O62: 2 | P62: 17.73 | Q62: 1 | R62: =SUM(B62:L62,N62,O62,Q62) -> 15 | S62: =R62/[1]Коды!$C$20 -> 0.75
A63: Федеральная пробирная палата | B63: 0 | C63: 0 | D63: 0 | E63: 0 | F63: 0 | G63: 0 | H63: 1 | I63: 1 | J63: 1 | K63: 1 | L63: 2 | M63: 16.7 | N63: 1 | O63: 0 | P63: 11.23 | Q63: 2 | R63: =SUM(B63:L63,N63,O63,Q63) -> 9 | S63: =R63/[1]Коды!$C$20 -> 0.45
A64: ФМБА России | B64: 1 | C64: 0 | D64: 1 | E64: 0 | F64: 0 | G64: 1 | H64: 1 | I64: 0 | J64: 0 | K64: 0 | L64: 1 | M64: 15.36 | N64: 1 | O64: 0 | P64: 0 | Q64: 0 | R64: =SUM(B64:L64,N64,O64,Q64) -> 6 | S64: =R64/[1]Коды!$C$20 -> 0.3
A65: ФНС России | B65: 1 | C65: 0 | D65: 1 | E65: 1 | F65: 0 | G65: 1 | H65: 1 | I65: 0 | J65: 0 | K65: 0 | L65: 1 | M65: 23.44 | N65: 0 | O65: 0 | P65: 0 | Q65: 0 | R65: =SUM(B65:L65,N65,O65,Q65) -> 6 | S65: =R65/[1]Коды!$C$20 -> 0.3
A66: ФСБ России | B66: 1 | C66: 0 | D66: 1 | E66: 0 | F66: 0 | G66: 0 | H66: 0 | I66: 0 | J66: 0 | K66: 0 | L66: 0 | M66: 0 | N66: 0 | O66: 0 | P66: 0 | Q66: 0 | R66: =SUM(B66:L66,N66,O66,Q66) -> 2 | S66: =R66/[1]Коды!$C$20 -> 0.1
A67: ФСВТС России | B67: 1 | C67: 0 | D67: 1 | E67: 0 | F67: 0 | G67: 0 | H67: 0 | I67: 0 | J67: 0 | K67: 0 | L67: 0 | M67: 0 | N67: 0 | O67: 0 | P67: 0 | Q67: 0 | R67: =SUM(B67:L67,N67,O67,Q67) -> 2 | S67: =R67/[1]Коды!$C$20 -> 0.1
A68: ФСИН России | B68: 1 | C68: 0 | D68: 1 | E68: 0 | F68: 0 | G68: 2 | H68: 1 | I68: 1 | J68: 1 | K68: 1 | L68: 2 | M68: 20.53 | N68: 0 | O68: 2 | P68: 16.82 | Q68: 1 | R68: =SUM(B68:L68,N68,O68,Q68) -> 13 | S68: =R68/[1]Коды!$C$20 -> 0.65
A69: ФСО России | B69: 1 | C69: 1 | D69: 1 | E69: 1 | F69: 0 | G69: 0 | H69: 0 | I69: 0 | J69: 0 | K69: 0 | L69: 0 | M69: 0 | N69: 0 | O69: 0 | P69: 0 | Q69: 0 | R69: =SUM(B69:L69,N69,O69,Q69) -> 4 | S69: =R69/[1]Коды!$C$20 -> 0.2
A70: ФССП России | B70: 1 | C70: 0 | D70: 1 | E70: 1 | F70: 0 | G70: 1 | H70: 1 | I70: 0 | J70: 0 | K70: 0 | L70: 1 | M70: 20.47 | N70: 0 | O70: 0 | P70: 0 | Q70: 0 | R70: =SUM(B70:L70,N70,O70,Q70) -> 6 | S70: =R70/[1]Коды!$C$20 -> 0.3
A71: ФСТЭК России | B71: 0 | C71: 0 | D71: 0 | E71: 0 | F71: 1 | G71: 0 | H71: 1 | I71: 0 | J71: 0 | K71: 0 | L71: 2 | M71: 14.03 | N71: 2 | O71: 0 | P71: 0 | Q71: 0 | R71: =SUM(B71:L71,N71,O71,Q71) -> 6 | S71: =R71/[1]Коды!$C$20 -> 0.3
A72: ФТС России | B72: 1 | C72: 1 | D72: 1 | E72: 0 | F72: 0 | G72: 2 | H72: 1 | I72: 1 | J72: 1 | K72: 1 | L72: 2 | M72: 17.73 | N72: 1 | O72: 2 | P72: 18.01 | Q72: 1 | R72: =SUM(B72:L72,N72,O72,Q72) -> 15 | S72: =R72/[1]Коды!$C$20 -> 0.75
